Department,ENTITY,DATE,EXPENSE AREA,EXPENSE TYPE,SUPPLIER,TRANSACTION_NUMBER,AMOUNT
Ministry of Justice,HM Courts and Tribunals Service,15-Apr-11,DZ999-South West Region,130001-Other Income,MARSTON GROUP,1571531,"31,479.20"
Ministry of Justice,HM Courts and Tribunals Service,15-Apr-11,GZ999-North West Region,130001-Other Income,MARSTON GROUP,1571531,"134,383.99"
Ministry of Justice,HM Courts and Tribunals Service,15-Apr-11,AR999-HMCS Central Budgets,211000-Judicial Salaries - Salaried,JUDICIAL PENSIONS SCHEME,1571462,"4,804,820.27"
Ministry of Justice,HM Courts and Tribunals Service,19-Apr-11,TR130-Finance & Resources,211000-Judicial Salaries - Salaried,JUDICIAL PENSIONS SCHEME,1091,"1,322,051.72"
Ministry of Justice,HM Courts and Tribunals Service,05-Apr-11,TR200-Regional South,221000-Property Rent and Rates,EDDISONS,1553455,"40,368.52"
Ministry of Justice,HM Courts and Tribunals Service,12-Apr-11,TR200-Regional South,221000-Property Rent and Rates,CBRE CB RICHARD ELLIS,1564078,"48,960.00"
Ministry of Justice,HM Courts and Tribunals Service,15-Apr-11,TR190-Regional North,221000-Property Rent and Rates,LANDA ASSET MANAGEMENT PLC,6346,"173,862.00"
Ministry of Justice,HM Courts and Tribunals Service,01-Apr-11,HZ999-North East and Yorkshire,223000-Other Expenditure,NEOPOST LTD,1550504,"41,671.82"
Ministry of Justice,HM Courts and Tribunals Service,12-Apr-11,HZ999-North East and Yorkshire,223001-Printing Postage and Office expenditure,XEROX (UK) LTD,1565093,"27,097.32"
Ministry of Justice,HM Courts and Tribunals Service,13-Apr-11,TR120-Corporate,223001-Printing Postage and Office expenditure,XEROX (UK) LTD,1569611,"38,740.18"
Ministry of Justice,HM Courts and Tribunals Service,19-Apr-11,CZ999-South East Region,223001-Printing Postage and Office expenditure,XEROX (UK) LTD,1575415,"31,126.91"
Ministry of Justice,HM Courts and Tribunals Service,21-Apr-11,BZ999-London Region,223001-Printing Postage and Office expenditure,XEROX (UK) LTD,1581791,"47,144.78"
Ministry of Justice,HM Courts and Tribunals Service,21-Apr-11,TR120-Corporate,223001-Printing Postage and Office expenditure,XEROX (UK) LTD,1581791,"50,518.14"
Ministry of Justice,HM Courts and Tribunals Service,21-Apr-11,BZ999-London Region,222002-Other Property Costs,DERBYSHIRE COURTS LTD,1580021,"546,154.97"
Ministry of Justice,HM Courts and Tribunals Service,08-Apr-11,IZ999-RCJ Group,222001-Maintenance,PRIME ESTATES PROPERTY MANAGEMENT,1562181,"31,834.75"
Ministry of Justice,HM Courts and Tribunals Service,12-Apr-11,IZ999-RCJ Group,222001-Maintenance,WICHFORD TEMPLE BACK BRISTOL LTD,1565055,"85,000.00"
Ministry of Justice,HM Courts and Tribunals Service,01-Apr-11,EZ999-Wales Region,222001-Maintenance,REGTON LTD,1550669,"31,811.40"
Ministry of Justice,HM Courts and Tribunals Service,05-Apr-11,CZ999-South East Region,222001-Maintenance,NORLAND MANAGED SERVICES LTD,1553864,"25,472.04"
Ministry of Justice,HM Courts and Tribunals Service,12-Apr-11,DZ999-South West Region,222001-Maintenance,MITIE TECHNICAL FACILITIES MANAGEMENT LTD,1564516,"33,252.23"
Ministry of Justice,HM Courts and Tribunals Service,27-Apr-11,HZ999-North East and Yorkshire,222001-Maintenance,HONEYWELL CONTROL SYSTEMS LTD,1585255,"30,203.64"
Ministry of Justice,HM Courts and Tribunals Service,27-Apr-11,HZ999-North East and Yorkshire,222001-Maintenance,HONEYWELL CONTROL SYSTEMS LTD,1585255,"28,481.08"
Ministry of Justice,HM Courts and Tribunals Service,27-Apr-11,HZ999-North East and Yorkshire,222001-Maintenance,HONEYWELL CONTROL SYSTEMS LTD,1585255,"35,392.34"
Ministry of Justice,HM Courts and Tribunals Service,05-Apr-11,CZ999-South East Region,222001-Maintenance,BAILEY MAINTENANCE LTD,1553197,"61,838.74"
Ministry of Justice,HM Courts and Tribunals Service,19-Apr-11,AG999-Estates Directorate HMCS HQ,222001-Maintenance,WHEELERS,1575375,"39,780.24"
Ministry of Justice,HM Courts and Tribunals Service,19-Apr-11,FZ999-Midlands Region,222001-Maintenance,SITEC INTERIORS LTD,1575217,"30,605.64"
Ministry of Justice,HM Courts and Tribunals Service,01-Apr-11,FZ999-Midlands Region,222001-Maintenance,SITEC INTERIORS LTD,1550725,"153,826.16"
Ministry of Justice,HM Courts and Tribunals Service,01-Apr-11,FZ999-Midlands Region,222001-Maintenance,SITEC INTERIORS LTD,1550725,"54,027.19"
Ministry of Justice,HM Courts and Tribunals Service,05-Apr-11,CZ999-South East Region,222001-Maintenance,PROCARE BUILDING SERVICES LTD,1553969,"29,502.56"
Ministry of Justice,HM Courts and Tribunals Service,05-Apr-11,CZ999-South East Region,222001-Maintenance,PROCARE BUILDING SERVICES LTD,1553969,"59,482.80"
Ministry of Justice,HM Courts and Tribunals Service,15-Apr-11,FZ999-Midlands Region,222001-Maintenance,DH FATHERS LTD,1571248,"34,177.20"
Ministry of Justice,HM Courts and Tribunals Service,15-Apr-11,EZ999-Wales Region,222001-Maintenance,HENSTAFF CONSTRUCTION LTD,1571391,"67,027.56"
Ministry of Justice,HM Courts and Tribunals Service,19-Apr-11,CZ999-South East Region,222001-Maintenance,VINSTRATA BUILDERS (LONDON) LTD,1575338,"191,590.80"
Ministry of Justice,HM Courts and Tribunals Service,27-Apr-11,EZ999-Wales Region,222001-Maintenance,HENSTAFF CONSTRUCTION LTD,1585244,"30,955.30"
Ministry of Justice,HM Courts and Tribunals Service,05-Apr-11,BZ999-London Region,222001-Maintenance,TREND CONTROL SYSTEMS LTD,1554182,"45,787.54"
Ministry of Justice,HM Courts and Tribunals Service,05-Apr-11,CZ999-South East Region,222001-Maintenance,BAILEY MAINTENANCE LTD,1553196,"25,721.40"
Ministry of Justice,HM Courts and Tribunals Service,05-Apr-11,CZ999-South East Region,222001-Maintenance,PROCARE BUILDING SERVICES LTD,1553969,"38,317.14"
Ministry of Justice,HM Courts and Tribunals Service,05-Apr-11,CZ999-South East Region,222001-Maintenance,NORLAND MANAGED SERVICES LTD,1553863,"28,566.36"
Ministry of Justice,HM Courts and Tribunals Service,08-Apr-11,IZ999-RCJ Group,222001-Maintenance,WILSON JAMES LTD,1562405,"182,255.02"
Ministry of Justice,HM Courts and Tribunals Service,08-Apr-11,FZ999-Midlands Region,222001-Maintenance,REIRSE RYAN LTD,1562207,"49,590.00"
Ministry of Justice,HM Courts and Tribunals Service,12-Apr-11,HZ999-North East and Yorkshire,222001-Maintenance,PYEROY LTD,1564830,"25,560.00"
Ministry of Justice,HM Courts and Tribunals Service,20-Apr-11,AG999-Estates Directorate HMCS HQ,222001-Maintenance,C WOOD & SON (LUTON) LTD,1575497,"68,721.26"
Ministry of Justice,HM Courts and Tribunals Service,15-Apr-11,GZ999-North West Region,261000-Fuel and Utilities,UNITED UTILITIES WATER PLC,365096,"78,893.62"
Ministry of Justice,HM Courts and Tribunals Service,15-Apr-11,GZ999-North West Region,261000-Fuel and Utilities,BRITISH GAS BUSINESS,1571142,"42,100.26"
Ministry of Justice,HM Courts and Tribunals Service,15-Apr-11,HZ999-North East and Yorkshire,261000-Fuel and Utilities,BRITISH GAS BUSINESS,1571142,"45,476.28"
Ministry of Justice,HM Courts and Tribunals Service,15-Apr-11,FZ999-Midlands Region,261000-Fuel and Utilities,BRITISH GAS BUSINESS,1571142,"55,735.08"
Ministry of Justice,HM Courts and Tribunals Service,15-Apr-11,DZ999-South West Region,261000-Fuel and Utilities,BRITISH GAS BUSINESS,1571142,"51,482.68"
Ministry of Justice,HM Courts and Tribunals Service,19-Apr-11,CZ999-South East Region,261000-Fuel and Utilities,BRITISH GAS BUSINESS,1573564,"66,914.97"
Ministry of Justice,HM Courts and Tribunals Service,19-Apr-11,IZ999-RCJ Group,261000-Fuel and Utilities,EDF ENERGY LTD,1573769,"46,502.66"
Ministry of Justice,HM Courts and Tribunals Service,19-Apr-11,IZ999-RCJ Group,261000-Fuel and Utilities,EDF ENERGY LTD,1573769,"41,715.88"
Ministry of Justice,HM Courts and Tribunals Service,19-Apr-11,TR120-Corporate,261000-Fuel and Utilities,BRITISH GAS BUSINESS,1573564,"30,031.09"
Ministry of Justice,HM Courts and Tribunals Service,26-Apr-11,BZ999-London Region,261000-Fuel and Utilities,BRITISH GAS BUSINESS,1583624,"60,944.16"
Ministry of Justice,HM Courts and Tribunals Service,27-Apr-11,EZ999-Wales Region,261000-Fuel and Utilities,BRITISH GAS BUSINESS,1585111,"50,734.23"
Ministry of Justice,HM Courts and Tribunals Service,05-Apr-11,FZ999-Midlands Region,261000-Fuel and Utilities,CORONA ENERGY,1553371,"84,801.97"
Ministry of Justice,HM Courts and Tribunals Service,06-Apr-11,CZ999-South East Region,261000-Fuel and Utilities,BEDFORDSHIRE POLICE AUTHORITY,1558516,"32,796.83"
Ministry of Justice,HM Courts and Tribunals Service,15-Apr-11,IZ999-RCJ Group,261000-Fuel and Utilities,CORONA ENERGY,1571213,"29,649.13"
Ministry of Justice,HM Courts and Tribunals Service,05-Apr-11,BZ999-London Region,222002-Other Property Costs,MITIE SECURITY LTD,1553821,"26,056.91"
Ministry of Justice,HM Courts and Tribunals Service,06-Apr-11,FZ999-Midlands Region,222002-Other Property Costs,MITIE SECURITY LTD,1558895,"36,456.26"
Ministry of Justice,HM Courts and Tribunals Service,06-Apr-11,CZ999-South East Region,222002-Other Property Costs,MITIE SECURITY LTD,1558895,"45,177.70"
Ministry of Justice,HM Courts and Tribunals Service,12-Apr-11,GZ999-North West Region,222002-Other Property Costs,MITIE SECURITY LTD,1564514,"428,810.42"
Ministry of Justice,HM Courts and Tribunals Service,12-Apr-11,DZ999-South West Region,222002-Other Property Costs,MITIE SECURITY LTD,1564514,"299,008.19"
Ministry of Justice,HM Courts and Tribunals Service,12-Apr-11,FZ999-Midlands Region,222002-Other Property Costs,MITIE SECURITY LTD,1564514,"432,113.33"
Ministry of Justice,HM Courts and Tribunals Service,12-Apr-11,BZ999-London Region,222002-Other Property Costs,HM PRISON SERVICE,1564319,"35,346.91"
Ministry of Justice,HM Courts and Tribunals Service,15-Apr-11,HZ999-North East and Yorkshire,222002-Other Property Costs,MITIE SECURITY LTD,1571564,"410,701.56"
Ministry of Justice,HM Courts and Tribunals Service,15-Apr-11,EZ999-Wales Region,222002-Other Property Costs,MITIE SECURITY LTD,1571564,"193,192.42"
Ministry of Justice,HM Courts and Tribunals Service,19-Apr-11,HZ999-North East and Yorkshire,222002-Other Property Costs,MITIE SECURITY LTD,1574221,"36,564.85"
Ministry of Justice,HM Courts and Tribunals Service,19-Apr-11,GZ999-North West Region,222002-Other Property Costs,MITIE SECURITY LTD,1574221,"43,586.65"
Ministry of Justice,HM Courts and Tribunals Service,19-Apr-11,CZ999-South East Region,222002-Other Property Costs,MITIE SECURITY LTD,1574221,"560,267.65"
Ministry of Justice,HM Courts and Tribunals Service,21-Apr-11,BZ999-London Region,222002-Other Property Costs,MITIE SECURITY LTD,1580190,"766,709.10"
Ministry of Justice,HM Courts and Tribunals Service,08-Apr-11,HZ999-North East and Yorkshire,222002-Other Property Costs,NORTH YORKSHIRE COUNTY COUNCIL,1562056,"31,930.16"
Ministry of Justice,HM Courts and Tribunals Service,12-Apr-11,HZ999-North East and Yorkshire,222002-Other Property Costs,RENTOKIL INITIAL UK LIMITED,1564849,"50,921.64"
Ministry of Justice,HM Courts and Tribunals Service,15-Apr-11,GZ999-North West Region,222002-Other Property Costs,RENTOKIL INITIAL UK LIMITED,1571777,"58,582.44"
Ministry of Justice,HM Courts and Tribunals Service,19-Apr-11,CZ999-South East Region,222002-Other Property Costs,HI-SPEC FACILITIES SUPPORT CO PLC,1573914,"258,547.51"
Ministry of Justice,HM Courts and Tribunals Service,20-Apr-11,GZ999-North West Region,222002-Other Property Costs,"OCS GROUP UK LTD, OCS ENGINEERING",1575763,"28,078.37"
Ministry of Justice,HM Courts and Tribunals Service,21-Apr-11,BZ999-London Region,222002-Other Property Costs,MACLELLAN INTERNATIONAL LTD,1580157,"328,211.32"
Ministry of Justice,HM Courts and Tribunals Service,26-Apr-11,EZ999-Wales Region,222002-Other Property Costs,OCS SUPPORT SERVICES LTD,1583877,"93,328.30"
Ministry of Justice,HM Courts and Tribunals Service,28-Apr-11,HZ999-North East and Yorkshire,222002-Other Property Costs,ELITE CLEANING & ENV SERVICES LTD,1586074,"137,894.30"
Ministry of Justice,HM Courts and Tribunals Service,28-Apr-11,GZ999-North West Region,222002-Other Property Costs,ELITE CLEANING & ENV SERVICES LTD,1586074,"178,103.07"
Ministry of Justice,HM Courts and Tribunals Service,28-Apr-11,TR120-Corporate,222002-Other Property Costs,MACLELLAN INTERNATIONAL LTD,1586160,"30,122.63"
Ministry of Justice,HM Courts and Tribunals Service,05-Apr-11,FZ999-Midlands Region,222001-Maintenance,EC HARRIS LLP,1553454,"96,547.46"
Ministry of Justice,HM Courts and Tribunals Service,06-Apr-11,HZ999-North East and Yorkshire,222001-Maintenance,DTZ DEBENHAM TIE LEUNG,1558637,"59,401.88"
Ministry of Justice,HM Courts and Tribunals Service,08-Apr-11,BZ999-London Region,222001-Maintenance,EC HARRIS LLP,1561708,"51,399.84"
Ministry of Justice,HM Courts and Tribunals Service,08-Apr-11,IZ999-RCJ Group,222001-Maintenance,EC HARRIS LLP,1561708,"32,400.00"
Ministry of Justice,HM Courts and Tribunals Service,08-Apr-11,BZ999-London Region,222001-Maintenance,EC HARRIS LLP,1561708,"97,127.29"
Ministry of Justice,HM Courts and Tribunals Service,08-Apr-11,CZ999-South East Region,222001-Maintenance,EC HARRIS LLP,1561708,"153,000.00"
Ministry of Justice,HM Courts and Tribunals Service,15-Apr-11,IZ999-RCJ Group,222001-Maintenance,EC HARRIS LLP,1571275,"32,400.00"
Ministry of Justice,HM Courts and Tribunals Service,21-Apr-11,GZ999-North West Region,222001-Maintenance,DTZ DEBENHAM TIE LEUNG,1580030,"70,283.78"
Ministry of Justice,HM Courts and Tribunals Service,19-Apr-11,DZ999-South West Region,222001-Maintenance,CHUBB LOCKS CUSTODIAL SERVICES LTD,1573639,"61,303.14"
Ministry of Justice,HM Courts and Tribunals Service,15-Apr-11,TR190-Regional North,222001-Maintenance,TELEREAL TRILLIUM,1571883,"43,848.19"
Ministry of Justice,HM Courts and Tribunals Service,01-Apr-11,EZ999-Wales Region,222001-Maintenance,VOICE PRODUCTS LTD,1550789,"75,093.91"
Ministry of Justice,HM Courts and Tribunals Service,08-Apr-11,CZ999-South East Region,222001-Maintenance,IOM CONSULTING LTD,360033,"68,162.40"
Ministry of Justice,HM Courts and Tribunals Service,08-Apr-11,EZ999-Wales Region,222001-Maintenance,HOME OFFICE,1561849,"74,000.00"
Ministry of Justice,HM Courts and Tribunals Service,08-Apr-11,CZ999-South East Region,222001-Maintenance,EC HARRIS LLP,1561708,"26,241.62"
Ministry of Justice,HM Courts and Tribunals Service,01-Apr-11,FZ999-Midlands Region,222001-Maintenance,EMCOR FACILITIES SERVICES LTD,1550304,"34,586.11"
Ministry of Justice,HM Courts and Tribunals Service,01-Apr-11,FZ999-Midlands Region,222001-Maintenance,EMCOR FACILITIES SERVICES LTD,1550304,"25,455.88"
Ministry of Justice,HM Courts and Tribunals Service,01-Apr-11,EZ999-Wales Region,222001-Maintenance,KIER FACILITIES SERVICES LTD,1550428,"66,358.28"
Ministry of Justice,HM Courts and Tribunals Service,01-Apr-11,EZ999-Wales Region,222001-Maintenance,KIER FACILITIES SERVICES LTD,1550428,"40,659.48"
Ministry of Justice,HM Courts and Tribunals Service,01-Apr-11,DZ999-South West Region,222001-Maintenance,KIER FACILITIES SERVICES LTD,1550428,"36,833.46"
Ministry of Justice,HM Courts and Tribunals Service,01-Apr-11,EZ999-Wales Region,222001-Maintenance,KIER FACILITIES SERVICES LTD,1550428,"25,821.23"
Ministry of Justice,HM Courts and Tribunals Service,08-Apr-11,TR200-Regional South,222001-Maintenance,ISLWYN PUGH CONSTRUCTION LTD,1561873,"54,000.00"
Ministry of Justice,HM Courts and Tribunals Service,12-Apr-11,HZ999-North East and Yorkshire,222001-Maintenance,HONEYWELL CONTROL SYSTEMS LTD,1564330,"37,403.26"
Ministry of Justice,HM Courts and Tribunals Service,15-Apr-11,HZ999-North East and Yorkshire,222001-Maintenance,BAILEY MAINTENANCE LTD,1571080,"47,944.07"
Ministry of Justice,HM Courts and Tribunals Service,15-Apr-11,HZ999-North East and Yorkshire,222001-Maintenance,BAILEY MAINTENANCE LTD,1571080,"56,431.53"
Ministry of Justice,HM Courts and Tribunals Service,15-Apr-11,GZ999-North West Region,222001-Maintenance,BAILEY MAINTENANCE LTD,1571080,"59,891.75"
Ministry of Justice,HM Courts and Tribunals Service,15-Apr-11,FZ999-Midlands Region,222001-Maintenance,MITIE TECHNICAL FACILITIES MANAGEMENT LTD,1571565,"85,049.30"
Ministry of Justice,HM Courts and Tribunals Service,19-Apr-11,TR190-Regional North,222001-Maintenance,ARH GROUP LTD,1573477,"42,307.20"
Ministry of Justice,HM Courts and Tribunals Service,19-Apr-11,CZ999-South East Region,222001-Maintenance,NORLAND MANAGED SERVICES LTD,1574286,"32,751.48"
Ministry of Justice,HM Courts and Tribunals Service,19-Apr-11,CZ999-South East Region,222001-Maintenance,NORLAND MANAGED SERVICES LTD,1574286,"41,008.18"
Ministry of Justice,HM Courts and Tribunals Service,19-Apr-11,CZ999-South East Region,222001-Maintenance,BAILEY MAINTENANCE LTD,1573493,"27,075.60"
Ministry of Justice,HM Courts and Tribunals Service,19-Apr-11,DZ999-South West Region,222001-Maintenance,NORLAND MANAGED SERVICES LTD,1574285,"40,420.22"
Ministry of Justice,HM Courts and Tribunals Service,19-Apr-11,GZ999-North West Region,222001-Maintenance,CARILLION PLANNED MAINTENANCE,1573615,"197,535.67"
Ministry of Justice,HM Courts and Tribunals Service,19-Apr-11,CZ999-South East Region,222001-Maintenance,BAILEY MAINTENANCE LTD,1573493,"25,273.80"
Ministry of Justice,HM Courts and Tribunals Service,20-Apr-11,CZ999-South East Region,222001-Maintenance,MITIE TECHNICAL FACILITIES MANAGEMENT LTD,1575739,"42,200.54"
Ministry of Justice,HM Courts and Tribunals Service,26-Apr-11,DZ999-South West Region,222001-Maintenance,MITIE TECHNICAL FACILITIES MANAGEMENT LTD,1583852,"104,764.68"
Ministry of Justice,HM Courts and Tribunals Service,27-Apr-11,BZ999-London Region,222001-Maintenance,MITIE TECHNICAL FACILITIES MANAGEMENT LTD,1585341,"119,782.03"
Ministry of Justice,HM Courts and Tribunals Service,28-Apr-11,BZ999-London Region,222001-Maintenance,NORLAND MANAGED SERVICES LTD,1586194,"135,512.77"
Ministry of Justice,HM Courts and Tribunals Service,05-Apr-11,CZ999-South East Region,222001-Maintenance,BAILEY MAINTENANCE LTD,1553196,"97,800.00"
Ministry of Justice,HM Courts and Tribunals Service,05-Apr-11,HZ999-North East and Yorkshire,222001-Maintenance,GARSIDE & LAYCOCK LTD,1553517,"33,880.38"
Ministry of Justice,HM Courts and Tribunals Service,08-Apr-11,BZ999-London Region,222001-Maintenance,SYKES & SON LTD,1562320,"34,800.00"
Ministry of Justice,HM Courts and Tribunals Service,08-Apr-11,BZ999-London Region,222001-Maintenance,SYKES & SON LTD,1562320,"32,865.59"
Ministry of Justice,HM Courts and Tribunals Service,08-Apr-11,BZ999-London Region,222001-Maintenance,SYKES & SON LTD,1562320,"30,924.52"
Ministry of Justice,HM Courts and Tribunals Service,08-Apr-11,BZ999-London Region,222001-Maintenance,SYKES & SON LTD,1562320,"35,861.81"
Ministry of Justice,HM Courts and Tribunals Service,08-Apr-11,BZ999-London Region,222001-Maintenance,SYKES & SON LTD,1562320,"34,800.00"
Ministry of Justice,HM Courts and Tribunals Service,19-Apr-11,TR200-Regional South,222001-Maintenance,STP SOLUTIONS LTD,1575259,"28,892.96"
Ministry of Justice,HM Courts and Tribunals Service,19-Apr-11,IZ999-RCJ Group,222001-Maintenance,SYKES & SON LTD,1575274,"37,440.60"
Ministry of Justice,HM Courts and Tribunals Service,06-Apr-11,CZ999-South East Region,262000-SCA Costs,MODERN COURTS (EAST ANGLIA) LTD,1558899,"493,090.44"
Ministry of Justice,HM Courts and Tribunals Service,08-Apr-11,DZ999-South West Region,262000-SCA Costs,ENTERPRISE CIVIC BUILDINGS LIMITED,1561725,"289,527.01"
Ministry of Justice,HM Courts and Tribunals Service,15-Apr-11,HZ999-North East and Yorkshire,262000-SCA Costs,MODERN COURTS (HUMBERSIDE) LTD,1571566,"420,059.60"
Ministry of Justice,HM Courts and Tribunals Service,20-Apr-11,HZ999-North East and Yorkshire,262000-SCA Costs,PALECASTLE LTD,1576946,"106,744.09"
Ministry of Justice,HM Courts and Tribunals Service,21-Apr-11,FZ999-Midlands Region,262000-SCA Costs,H & W COURTS LIMITED,1580073,"568,805.70"
Ministry of Justice,HM Courts and Tribunals Service,26-Apr-11,IZ999-RCJ Group,262000-SCA Costs,IRON MOUNTAIN UK LTD,1583801,"218,584.43"
Ministry of Justice,HM Courts and Tribunals Service,27-Apr-11,DZ999-South West Region,262000-SCA Costs,SERVICES SUPPORT (AVON & SOMERSET) LTD,1585887,"805,844.27"
Ministry of Justice,HM Courts and Tribunals Service,05-Apr-11,HZ999-North East and Yorkshire,223001-Printing Postage and Office expenditure,HM PRISON SERVICE,1553620,"98,092.05"
Ministry of Justice,HM Courts and Tribunals Service,08-Apr-11,HZ999-North East and Yorkshire,223001-Printing Postage and Office expenditure,HM PRISON SERVICE,1561842,"94,092.05"
Ministry of Justice,HM Courts and Tribunals Service,12-Apr-11,GZ999-North West Region,223001-Printing Postage and Office expenditure,XEROX (UK) LTD,1565092,"37,148.51"
Ministry of Justice,HM Courts and Tribunals Service,19-Apr-11,AB999-Court Improvement Directorate,223001-Printing Postage and Office expenditure,XEROX  BUSINESS SERVICES,1575414,"35,813.76"
Ministry of Justice,HM Courts and Tribunals Service,05-Apr-11,DZ999-South West Region,223001-Printing Postage and Office expenditure,ROYAL MAIL,1554034,"28,877.92"
Ministry of Justice,HM Courts and Tribunals Service,08-Apr-11,CZ999-South East Region,223001-Printing Postage and Office expenditure,ROYAL MAIL,1562235,"30,236.54"
Ministry of Justice,HM Courts and Tribunals Service,13-Apr-11,TR120-Corporate,223001-Printing Postage and Office expenditure,ROYAL MAIL GROUP PLC,1569529,"161,588.81"
Ministry of Justice,HM Courts and Tribunals Service,01-Apr-11,CZ999-South East Region,223000-Other Expenditure,VOICE PRODUCTS LTD,1550789,"30,771.97"
Ministry of Justice,HM Courts and Tribunals Service,01-Apr-11,CZ999-South East Region,223000-Other Expenditure,VOICE PRODUCTS LTD,1550789,"30,771.97"
Ministry of Justice,HM Courts and Tribunals Service,15-Apr-11,HZ999-North East and Yorkshire,223000-Other Expenditure,HM PRISON SERVICE,1571405,"29,306.63"
Ministry of Justice,HM Courts and Tribunals Service,05-Apr-11,AR999-HMCS Central Budgets,263000-Other Contracted Out Services,GOVERNMENT ACTUARY'S DEPARTMENT,1553544,"39,675.00"
Ministry of Justice,HM Courts and Tribunals Service,01-Apr-11,FZ999-Midlands Region,263000-Other Contracted Out Services,EUREST SERVICES,1550308,"25,867.14"
Ministry of Justice,HM Courts and Tribunals Service,08-Apr-11,AE199-Finance Directorate HMCS HQ,265000-IT & Telecommunications,STC ENERGY MANAGEMENT,1562297,"90,000.00"
Ministry of Justice,HM Courts and Tribunals Service,26-Apr-11,TR160-Operational Support,223000-Other Expenditure,CALDER CONFERENCES LTD,1583647,"32,533.90"
Ministry of Justice,HM Courts and Tribunals Service,08-Apr-11,CZ999-South East Region,265000-IT & Telecommunications,BT TELECOMMUNICATIONS PLC,1561568,"36,578.16"
Ministry of Justice,HM Courts and Tribunals Service,08-Apr-11,CZ999-South East Region,265000-IT & Telecommunications,CABLE & WIRELESS GLOBAL CARD SERVICES,1561585,"25,060.45"
Ministry of Justice,HM Courts and Tribunals Service,27-Apr-11,AV332-CBMP Civil Bus Mod Programme,265000-IT & Telecommunications,ATOS ORIGIN IT SERVICES UK LTD,1585086,"44,817.60"
Ministry of Justice,HM Courts and Tribunals Service,01-Apr-11,AV329-CP-Mag. Courts Operational Bus.sys,265000-IT & Telecommunications,LOGICA UK LTD,1550446,"26,580.00"
Ministry of Justice,HM Courts and Tribunals Service,12-Apr-11,AV322-CP Change Management SUPS,265000-IT & Telecommunications,LOGICA UK LTD,1564450,"285,626.40"
Ministry of Justice,HM Courts and Tribunals Service,12-Apr-11,AV322-CP Change Management SUPS,265000-IT & Telecommunications,LOGICA UK LTD,1564450,"83,110.80"
Ministry of Justice,HM Courts and Tribunals Service,12-Apr-11,AA499-HMCS Change Programme,265000-IT & Telecommunications,LOGICA UK LTD,1564450,"135,073.20"
Ministry of Justice,HM Courts and Tribunals Service,15-Apr-11,TB140-Change Programme,265000-IT & Telecommunications,LOGICA UK LTD,1571506,"123,854.40"
Ministry of Justice,HM Courts and Tribunals Service,19-Apr-11,AV332-CBMP Civil Bus Mod Programme,265000-IT & Telecommunications,LOGICA UK LTD,1574117,"64,862.15"
Ministry of Justice,HM Courts and Tribunals Service,05-Apr-11,AV322-CP Change Management SUPS,265000-IT & Telecommunications,ATOS ORIGIN IT SERVICES UK LTD,1553183,"32,565.60"
Ministry of Justice,HM Courts and Tribunals Service,08-Apr-11,AG999-Estates Directorate HMCS HQ,265000-IT & Telecommunications,ATOS ORIGIN IT SERVICES UK LTD,1561496,"152,480.75"
Ministry of Justice,HM Courts and Tribunals Service,08-Apr-11,CZ999-South East Region,265000-IT & Telecommunications,ATOS ORIGIN IT SERVICES UK LTD,1561496,"129,229.20"
Ministry of Justice,HM Courts and Tribunals Service,08-Apr-11,AB999-Court Improvement Directorate,265000-IT & Telecommunications,ATOS ORIGIN IT SERVICES UK LTD,1561496,"39,388.80"
Ministry of Justice,HM Courts and Tribunals Service,27-Apr-11,AA499-HMCS Change Programme,265000-IT & Telecommunications,ATOS ORIGIN IT SERVICES UK LTD,1585086,"26,019.29"
Ministry of Justice,HM Courts and Tribunals Service,28-Apr-11,FZ999-Midlands Region,265000-IT & Telecommunications,ATOS ORIGIN IT SERVICES UK LTD,1585988,"31,953.90"
Ministry of Justice,HM Courts and Tribunals Service,21-Apr-11,AB999-Court Improvement Directorate,265000-IT & Telecommunications,LOGICA UK LTD,1580148,"113,828.40"
Ministry of Justice,HM Courts and Tribunals Service,27-Apr-11,AB999-Court Improvement Directorate,265000-IT & Telecommunications,LOGICA UK LTD,1585313,"334,585.94"
Ministry of Justice,HM Courts and Tribunals Service,27-Apr-11,AB999-Court Improvement Directorate,265000-IT & Telecommunications,LOGICA UK LTD,1585313,"30,302.40"
Ministry of Justice,HM Courts and Tribunals Service,15-Apr-11,AB999-Court Improvement Directorate,264000-Consultancy,INFO-ASSURE LTD,1571436,"25,425.00"
Ministry of Justice,HM Courts and Tribunals Service,15-Apr-11,AB999-Court Improvement Directorate,264000-Consultancy,INFO-ASSURE LTD,1571436,"35,775.00"
Ministry of Justice,HM Courts and Tribunals Service,06-Apr-11,TR130-Finance & Resources,223000-Other Expenditure,HMRC,1558756,"642,225.00"
Ministry of Justice,HM Courts and Tribunals Service,12-Apr-11,GZ999-North West Region,226000-Court Costs,EUREST SERVICES,1564198,"33,904.06"
Ministry of Justice,HM Courts and Tribunals Service,01-Apr-11,BZ999-London Region,226000-Court Costs,MERRILL LEGAL SOLUTIONS,1550484,"31,739.60"
Ministry of Justice,HM Courts and Tribunals Service,12-Apr-11,DZ999-South West Region,226000-Court Costs,MERRILL LEGAL SOLUTIONS,1564502,"49,575.91"
Ministry of Justice,HM Courts and Tribunals Service,20-Apr-11,BZ999-London Region,226000-Court Costs,SELLERS LEGAL SERVICES LTD,1576991,"57,246.00"
Ministry of Justice,HM Courts and Tribunals Service,27-Apr-11,BZ999-London Region,226000-Court Costs,MERRILL LEGAL SOLUTIONS,1585333,"32,555.24"
Ministry of Justice,HM Courts and Tribunals Service,15-Apr-11,GZ999-North West Region,226000-Court Costs,CATER WALSH REPORTING LTD,364792,"81,351.79"
Ministry of Justice,HM Courts and Tribunals Service,05-Apr-11,AU999-National Taxing Teams,226000-Court Costs,B C L BURTON COPELAND#DX 37981,1551839,"29,555.91"
Ministry of Justice,HM Courts and Tribunals Service,05-Apr-11,AU999-National Taxing Teams,226000-Court Costs,B C L BURTON COPELAND#DX 37981,1551839,"26,107.60"
Ministry of Justice,HM Courts and Tribunals Service,05-Apr-11,AU999-National Taxing Teams,226000-Court Costs,MESSRS BARLOW LYDE & GILBERT#DX 14448,352941,"144,741.62"
Ministry of Justice,HM Courts and Tribunals Service,05-Apr-11,AU999-National Taxing Teams,226000-Court Costs,MESSRS PANNONE & PARTNERS LLP#DX 14314,1552075,"31,217.53"
Ministry of Justice,HM Courts and Tribunals Service,05-Apr-11,AU999-National Taxing Teams,226000-Court Costs,MESSRS DLA PIPER UK LLP#DX 13022,353074,"55,498.05"
Ministry of Justice,HM Courts and Tribunals Service,05-Apr-11,AU999-National Taxing Teams,226000-Court Costs,MESSRS GREGG LATCHAMS#DX 7845,1551987,"41,279.45"
Ministry of Justice,HM Courts and Tribunals Service,05-Apr-11,AU999-National Taxing Teams,226000-Court Costs,MESSRS ASHFORDS#DX 150000,352923,"27,193.70"
Ministry of Justice,HM Courts and Tribunals Service,05-Apr-11,AU999-National Taxing Teams,226000-Court Costs,MESSRS GQS SOLICITORS#DX 20658,353146,"40,963.41"
Ministry of Justice,HM Courts and Tribunals Service,05-Apr-11,AU999-National Taxing Teams,226000-Court Costs,MESSRS BARLOW LYDE & GILBERT#DX 14448,352941,"32,294.55"
Ministry of Justice,HM Courts and Tribunals Service,05-Apr-11,AU999-National Taxing Teams,226000-Court Costs,MESSRS MATWALA VYAS#DX 41905,353302,"31,272.99"
Ministry of Justice,HM Courts and Tribunals Service,05-Apr-11,AU999-National Taxing Teams,226000-Court Costs,MESSRS KHAKHAR & CO SOLICITORS#DX 200862,353252,"63,098.52"
Ministry of Justice,HM Courts and Tribunals Service,05-Apr-11,AU999-National Taxing Teams,226000-Court Costs,MESSRS BARLOW LYDE & GILBERT LLP#DX 155,352940,"51,059.31"
Ministry of Justice,HM Courts and Tribunals Service,05-Apr-11,AU999-National Taxing Teams,226000-Court Costs,MESSRS RUSTEM GUARDIAN#DX 53303,1552107,"25,658.77"
Ministry of Justice,HM Courts and Tribunals Service,05-Apr-11,AU999-National Taxing Teams,226000-Court Costs,MESSRS FOLLETT STOCK#DX 81225,353116,"46,083.43"
Ministry of Justice,HM Courts and Tribunals Service,19-Apr-11,AU999-National Taxing Teams,226000-Court Costs,MESSRS MALLETTS#DX 57851,365661,"28,905.20"
Ministry of Justice,HM Courts and Tribunals Service,19-Apr-11,AU999-National Taxing Teams,226000-Court Costs,MESSRS STEEL & SHAMASH#DX 36503,1573224,"33,306.55"
Ministry of Justice,HM Courts and Tribunals Service,19-Apr-11,AU999-National Taxing Teams,226000-Court Costs,MESSRS PETER DAVIES#DX 33019,365714,"56,253.20"
Ministry of Justice,HM Courts and Tribunals Service,19-Apr-11,AU999-National Taxing Teams,226000-Court Costs,MESSRS BPI#SE1 7JA,1573046,"84,743.01"
Ministry of Justice,HM Courts and Tribunals Service,19-Apr-11,AU999-National Taxing Teams,226000-Court Costs,RUSSELL JONES & WALKER#DX 13028,1573386,"80,914.49"
Ministry of Justice,HM Courts and Tribunals Service,19-Apr-11,AU999-National Taxing Teams,226000-Court Costs,B C L BURTON COPELAND#DX 37981,1572974,"32,103.78"
Ministry of Justice,HM Courts and Tribunals Service,19-Apr-11,AU999-National Taxing Teams,226000-Court Costs,MESSRS BEACHCROFT LLP# DX 13057,365397,"48,803.80"
Ministry of Justice,HM Courts and Tribunals Service,19-Apr-11,AU999-National Taxing Teams,226000-Court Costs,MESSRS KINGSLEY NAPLEY LLP#DX 22,365630,"28,682.90"
Ministry of Justice,HM Courts and Tribunals Service,12-Apr-11,AW999-Operations & Performance Dir.,226000-Court Costs,SIGN SOLUTIONS,1564916,"39,659.44"
Ministry of Justice,HM Courts and Tribunals Service,05-Apr-11,AU999-National Taxing Teams,311200-Criminal Legal Aid,MESSRS THE JOHNSON PARTNERSHIP#DX 10082,1552142,"90,544.29"
Ministry of Justice,HM Courts and Tribunals Service,05-Apr-11,AU999-National Taxing Teams,311200-Criminal Legal Aid,SAUNDERS LAW PARTNERSHIP#DX 37995,1552378,"35,562.14"
Ministry of Justice,HM Courts and Tribunals Service,05-Apr-11,AU999-National Taxing Teams,311200-Criminal Legal Aid,MESSRS JANES SOLICITORS#DX 140544,1552015,"42,379.84"
Ministry of Justice,HM Courts and Tribunals Service,05-Apr-11,AU999-National Taxing Teams,311200-Criminal Legal Aid,MESSRS JANES SOLICITORS#DX 140544,1552015,"31,279.64"
Ministry of Justice,HM Courts and Tribunals Service,05-Apr-11,AU999-National Taxing Teams,311200-Criminal Legal Aid,MESSRS MARTYN PROWEL SOLICITORS#DX 33037,353301,"30,829.06"
Ministry of Justice,HM Courts and Tribunals Service,05-Apr-11,AU999-National Taxing Teams,311200-Criminal Legal Aid,MESSRS CLARION SOLICITORS#DX 26427,353028,"44,400.01"
Ministry of Justice,HM Courts and Tribunals Service,05-Apr-11,AU999-National Taxing Teams,311200-Criminal Legal Aid,MESSRS ROBERT LAYTON & CO#DX 80264,353403,"135,161.63"
Ministry of Justice,HM Courts and Tribunals Service,19-Apr-11,AU999-National Taxing Teams,311200-Criminal Legal Aid,MESSRS OLLIERS#DX727755,1573185,"31,014.02"
Ministry of Justice,HM Courts and Tribunals Service,19-Apr-11,AU999-National Taxing Teams,311200-Criminal Legal Aid,MESSRS CARTERS#W15 4LY,365443,"61,080.85"
Ministry of Justice,HM Courts and Tribunals Service,19-Apr-11,AU999-National Taxing Teams,311200-Criminal Legal Aid,MESSRS MANDLA BHOMRA & CO#DX 24956,1573168,"40,752.03"
Ministry of Justice,HM Courts and Tribunals Service,19-Apr-11,AU999-National Taxing Teams,311200-Criminal Legal Aid,MESSRS SHEARMAN BOWEN LTD#DX 218,1573214,"34,593.65"
Ministry of Justice,HM Courts and Tribunals Service,19-Apr-11,AU999-National Taxing Teams,311200-Criminal Legal Aid,MESSRS SAKHI SOLICITORS#DX 10814,365750,"34,435.42"
Ministry of Justice,HM Courts and Tribunals Service,19-Apr-11,AU999-National Taxing Teams,311200-Criminal Legal Aid,MESSRS HARGREAVES GILMAN#M19 1WW,365562,"45,726.90"
Ministry of Justice,HM Courts and Tribunals Service,19-Apr-11,AU999-National Taxing Teams,311200-Criminal Legal Aid,MESSRS RALLI SOLICITORS#DX 14359,1573199,"96,234.17"
Ministry of Justice,HM Courts and Tribunals Service,19-Apr-11,AU999-National Taxing Teams,311200-Criminal Legal Aid,MESSRS HICKMAN & ROSE#DX53346,365579,"36,071.53"
Ministry of Justice,HM Courts and Tribunals Service,05-Apr-11,GZ999-North West Region,532000-Tangible GBV - Additions,POWERPERFECTOR PLC,1553961,"92,822.40"
Ministry of Justice,HM Courts and Tribunals Service,05-Apr-11,GZ999-North West Region,532000-Tangible GBV - Additions,DANTE FIRE & SECURITY LTD,1553404,"49,520.99"
Ministry of Justice,HM Courts and Tribunals Service,05-Apr-11,GZ999-North West Region,532000-Tangible GBV - Additions,POWERPERFECTOR PLC,1553961,"198,984.00"
Ministry of Justice,HM Courts and Tribunals Service,12-Apr-11,HZ999-North East and Yorkshire,532000-Tangible GBV - Additions,ALARM & COMMUNICATION SYSTEMS LTD,1563939,"56,625.60"
Ministry of Justice,HM Courts and Tribunals Service,19-Apr-11,BZ999-London Region,532000-Tangible GBV - Additions,DH FATHERS LTD,1573734,"49,856.46"
Ministry of Justice,HM Courts and Tribunals Service,27-Apr-11,HZ999-North East and Yorkshire,532000-Tangible GBV - Additions,HONEYWELL CONTROL SYSTEMS LTD,1585255,"34,757.20"
Ministry of Justice,HM Courts and Tribunals Service,08-Apr-11,DZ999-South West Region,532000-Tangible GBV - Additions,POWERPERFECTOR PLC,1562178,"34,294.50"
Ministry of Justice,HM Courts and Tribunals Service,27-Apr-11,HZ999-North East and Yorkshire,532000-Tangible GBV - Additions,BAILEY MAINTENANCE LTD,1585089,"25,852.67"
Ministry of Justice,HM Courts and Tribunals Service,27-Apr-11,HZ999-North East and Yorkshire,532000-Tangible GBV - Additions,BAILEY MAINTENANCE LTD,1585089,"26,373.41"
Ministry of Justice,HM Courts and Tribunals Service,15-Apr-11,CZ999-South East Region,532000-Tangible GBV - Additions,RACKLINE LIMITED,1571754,"45,343.80"
Ministry of Justice,HM Courts and Tribunals Service,08-Apr-11,IZ999-RCJ Group,532000-Tangible GBV - Additions,ATOS ORIGIN IT SERVICES UK LTD,1561496,"46,200.00"
Ministry of Justice,HM Courts and Tribunals Service,08-Apr-11,IZ999-RCJ Group,532000-Tangible GBV - Additions,ATOS ORIGIN IT SERVICES UK LTD,1561496,"156,724.80"
Ministry of Justice,HM Courts and Tribunals Service,08-Apr-11,IZ999-RCJ Group,532000-Tangible GBV - Additions,ATOS ORIGIN IT SERVICES UK LTD,1561496,"186,150.00"
Ministry of Justice,HM Courts and Tribunals Service,08-Apr-11,IZ999-RCJ Group,532000-Tangible GBV - Additions,ATOS ORIGIN IT SERVICES UK LTD,1561496,"28,401.60"
Ministry of Justice,HM Courts and Tribunals Service,01-Apr-11,GZ999-North West Region,532000-Tangible GBV - Additions,DH FATHERS LTD,1550279,"26,399.68"
Ministry of Justice,HM Courts and Tribunals Service,01-Apr-11,HZ999-North East and Yorkshire,532000-Tangible GBV - Additions,BUILDING AUTOMATION SOLUTIONS LTD,1550220,"27,000.00"
Ministry of Justice,HM Courts and Tribunals Service,01-Apr-11,AG999-Estates Directorate HMCS HQ,532000-Tangible GBV - Additions,ALL SECURITY SYSTEMS LTD,1550154,"89,716.82"
Ministry of Justice,HM Courts and Tribunals Service,05-Apr-11,FZ999-Midlands Region,532000-Tangible GBV - Additions,SMITHS DETECTION LTD,1554110,"39,302.40"
Ministry of Justice,HM Courts and Tribunals Service,05-Apr-11,EZ999-Wales Region,532000-Tangible GBV - Additions,MID & WEST WALES FIRE AND RESCUE AUTHORITY,1553810,"1,000,000.00"
Ministry of Justice,HM Courts and Tribunals Service,05-Apr-11,BZ999-London Region,532000-Tangible GBV - Additions,TURNER & TOWNSEND PROJECT MANAGEMENT,1554191,"51,213.60"
Ministry of Justice,HM Courts and Tribunals Service,05-Apr-11,FZ999-Midlands Region,532000-Tangible GBV - Additions,REIRSE RYAN LTD,1554003,"230,800.62"
Ministry of Justice,HM Courts and Tribunals Service,05-Apr-11,FZ999-Midlands Region,532000-Tangible GBV - Additions,POINTER LTD,1553954,"121,750.20"
Ministry of Justice,HM Courts and Tribunals Service,05-Apr-11,FZ999-Midlands Region,532000-Tangible GBV - Additions,EC HARRIS LLP,1553454,"25,698.59"
Ministry of Justice,HM Courts and Tribunals Service,05-Apr-11,HZ999-North East and Yorkshire,532000-Tangible GBV - Additions,APC BUILDING SERVICES (LONDON) LTD,1553172,"43,135.82"
Ministry of Justice,HM Courts and Tribunals Service,05-Apr-11,BZ999-London Region,532000-Tangible GBV - Additions,CITY OF LONDON,1553341,"628,068.00"
Ministry of Justice,HM Courts and Tribunals Service,05-Apr-11,CZ999-South East Region,532000-Tangible GBV - Additions,NORLAND MANAGED SERVICES LTD,1553864,"81,400.74"
Ministry of Justice,HM Courts and Tribunals Service,05-Apr-11,FZ999-Midlands Region,532000-Tangible GBV - Additions,POINTER LTD,1553954,"47,654.40"
Ministry of Justice,HM Courts and Tribunals Service,05-Apr-11,HZ999-North East and Yorkshire,532000-Tangible GBV - Additions,MACHENAIR BUILDING SERVICES LTD,1553752,"26,432.88"
Ministry of Justice,HM Courts and Tribunals Service,05-Apr-11,GZ999-North West Region,532000-Tangible GBV - Additions,DTZ DEBENHAM TIE LEUNG,1553445,"27,516.55"
Ministry of Justice,HM Courts and Tribunals Service,05-Apr-11,DZ999-South West Region,532000-Tangible GBV - Additions,DH FATHERS LTD,1553425,"134,376.92"
Ministry of Justice,HM Courts and Tribunals Service,05-Apr-11,FZ999-Midlands Region,532000-Tangible GBV - Additions,POINTER LTD,1553954,"71,575.31"
Ministry of Justice,HM Courts and Tribunals Service,05-Apr-11,FZ999-Midlands Region,532000-Tangible GBV - Additions,DEANE CONTROL SERVICES,1553420,"26,994.00"
Ministry of Justice,HM Courts and Tribunals Service,06-Apr-11,HZ999-North East and Yorkshire,532000-Tangible GBV - Additions,ALBERT INNES LTD,1558473,"42,962.80"
Ministry of Justice,HM Courts and Tribunals Service,06-Apr-11,FZ999-Midlands Region,532000-Tangible GBV - Additions,WOLVERHAMPTON CITY COUNCIL,1559685,"52,800.00"
Ministry of Justice,HM Courts and Tribunals Service,06-Apr-11,HZ999-North East and Yorkshire,532000-Tangible GBV - Additions,DTZ DEBENHAM TIE LEUNG,1558637,"29,861.34"
Ministry of Justice,HM Courts and Tribunals Service,08-Apr-11,DZ999-South West Region,532000-Tangible GBV - Additions,DH FATHERS LTD,1561680,"55,818.29"
Ministry of Justice,HM Courts and Tribunals Service,08-Apr-11,DZ999-South West Region,532000-Tangible GBV - Additions,DH FATHERS LTD,1561680,"55,991.36"
Ministry of Justice,HM Courts and Tribunals Service,08-Apr-11,DZ999-South West Region,532000-Tangible GBV - Additions,REF ELECTRICS (TAUNTON) LTD,1562204,"28,356.71"
Ministry of Justice,HM Courts and Tribunals Service,08-Apr-11,BZ999-London Region,532000-Tangible GBV - Additions,EC HARRIS LLP,1561708,"25,149.11"
Ministry of Justice,HM Courts and Tribunals Service,08-Apr-11,FZ999-Midlands Region,532000-Tangible GBV - Additions,EC HARRIS LLP,1561708,"30,334.72"
Ministry of Justice,HM Courts and Tribunals Service,12-Apr-11,HZ999-North East and Yorkshire,532000-Tangible GBV - Additions,DH FATHERS LTD,1564163,"169,635.53"
Ministry of Justice,HM Courts and Tribunals Service,12-Apr-11,HZ999-North East and Yorkshire,532000-Tangible GBV - Additions,DH FATHERS LTD,1564163,"37,262.69"
Ministry of Justice,HM Courts and Tribunals Service,12-Apr-11,BZ999-London Region,532000-Tangible GBV - Additions,R&M CLARKSON LTD,1564837,"84,076.10"
Ministry of Justice,HM Courts and Tribunals Service,12-Apr-11,HZ999-North East and Yorkshire,532000-Tangible GBV - Additions,ALBERT INNES LTD,1563940,"74,473.20"
Ministry of Justice,HM Courts and Tribunals Service,12-Apr-11,BZ999-London Region,532000-Tangible GBV - Additions,R&M CLARKSON LTD,1564837,"26,192.76"
Ministry of Justice,HM Courts and Tribunals Service,15-Apr-11,CZ999-South East Region,532000-Tangible GBV - Additions,EC HARRIS LLP,1571275,"74,172.00"
Ministry of Justice,HM Courts and Tribunals Service,15-Apr-11,HZ999-North East and Yorkshire,532000-Tangible GBV - Additions,STRATEGIC TEAM MAINTENANCE CO LTD,1571859,"226,363.37"
Ministry of Justice,HM Courts and Tribunals Service,19-Apr-11,HZ999-North East and Yorkshire,532000-Tangible GBV - Additions,VEST CONSTRUCTION (LIVECO LTD),1575335,"94,812.50"
Ministry of Justice,HM Courts and Tribunals Service,19-Apr-11,CZ999-South East Region,532000-Tangible GBV - Additions,NORLAND MANAGED SERVICES LTD,1574287,"62,933.47"
Ministry of Justice,HM Courts and Tribunals Service,19-Apr-11,BZ999-London Region,532000-Tangible GBV - Additions,HURD ROLLAND PARTNERSHIP,1573961,"83,350.31"
Ministry of Justice,HM Courts and Tribunals Service,27-Apr-11,HZ999-North East and Yorkshire,532000-Tangible GBV - Additions,WATSONS BUILDING SERVICES LTD,1585953,"125,089.64"
Ministry of Justice,HM Courts and Tribunals Service,27-Apr-11,HZ999-North East and Yorkshire,532000-Tangible GBV - Additions,WATSONS BUILDING SERVICES LTD,1585953,"120,233.87"
Ministry of Justice,HM Courts and Tribunals Service,27-Apr-11,HZ999-North East and Yorkshire,532000-Tangible GBV - Additions,WATSONS BUILDING SERVICES LTD,1585953,"245,851.40"
Ministry of Justice,HM Courts and Tribunals Service,27-Apr-11,GZ999-North West Region,532000-Tangible GBV - Additions,DTZ DEBENHAM TIE LEUNG,1585185,"27,553.63"
Ministry of Justice,HM Courts and Tribunals Service,28-Apr-11,FZ999-Midlands Region,532000-Tangible GBV - Additions,EC HARRIS LLP,1586069,"70,810.93"
Ministry of Justice,HM Courts and Tribunals Service,01-Apr-11,FZ999-Midlands Region,532000-Tangible GBV - Additions,MCDOWALL AIR CONDITIONING (UK) LTD,1550473,"59,935.20"
Ministry of Justice,HM Courts and Tribunals Service,01-Apr-11,GZ999-North West Region,532000-Tangible GBV - Additions,ANSA ELEVATORS LTD,1550159,"42,842.88"
Ministry of Justice,HM Courts and Tribunals Service,01-Apr-11,FZ999-Midlands Region,532000-Tangible GBV - Additions,KERSHAW MECHANICAL SERVICES LTD,1550427,"164,103.60"
Ministry of Justice,HM Courts and Tribunals Service,01-Apr-11,FZ999-Midlands Region,532000-Tangible GBV - Additions,EMCOR FACILITIES SERVICES LTD,1550304,"45,930.29"
Ministry of Justice,HM Courts and Tribunals Service,01-Apr-11,FZ999-Midlands Region,532000-Tangible GBV - Additions,EMCOR FACILITIES SERVICES LTD,1550304,"31,219.20"
Ministry of Justice,HM Courts and Tribunals Service,01-Apr-11,FZ999-Midlands Region,532000-Tangible GBV - Additions,DH FATHERS LTD,1550278,"119,730.23"
Ministry of Justice,HM Courts and Tribunals Service,01-Apr-11,BZ999-London Region,532000-Tangible GBV - Additions,SKANSEN INTERIORS LTD,1550726,"42,485.52"
Ministry of Justice,HM Courts and Tribunals Service,01-Apr-11,CZ999-South East Region,532000-Tangible GBV - Additions,NORLAND MANAGED SERVICES LTD,1550514,"97,886.40"
Ministry of Justice,HM Courts and Tribunals Service,01-Apr-11,BZ999-London Region,532000-Tangible GBV - Additions,NORLAND MANAGED SERVICES LTD,1550514,"61,708.63"
Ministry of Justice,HM Courts and Tribunals Service,01-Apr-11,BZ999-London Region,532000-Tangible GBV - Additions,CARILLION PLANNED MAINTENANCE,1550230,"39,363.01"
Ministry of Justice,HM Courts and Tribunals Service,01-Apr-11,CZ999-South East Region,532000-Tangible GBV - Additions,BAILEY MAINTENANCE LTD,1550172,"52,047.60"
Ministry of Justice,HM Courts and Tribunals Service,01-Apr-11,BZ999-London Region,532000-Tangible GBV - Additions,SIS SECURITY LTD,1550722,"34,137.60"
Ministry of Justice,HM Courts and Tribunals Service,01-Apr-11,FZ999-Midlands Region,532000-Tangible GBV - Additions,KERSHAW MECHANICAL SERVICES LTD,1550427,"41,419.20"
Ministry of Justice,HM Courts and Tribunals Service,01-Apr-11,EZ999-Wales Region,532000-Tangible GBV - Additions,HENSTAFF CONSTRUCTION LTD,1550372,"39,321.12"
Ministry of Justice,HM Courts and Tribunals Service,05-Apr-11,HZ999-North East and Yorkshire,532000-Tangible GBV - Additions,DIMESTAGE (CONSTRUCTION COMPANY) LTD (DCC),1553428,"73,456.57"
Ministry of Justice,HM Courts and Tribunals Service,05-Apr-11,BZ999-London Region,532000-Tangible GBV - Additions,NORLAND MANAGED SERVICES LTD,1553863,"35,229.60"
Ministry of Justice,HM Courts and Tribunals Service,05-Apr-11,CZ999-South East Region,532000-Tangible GBV - Additions,NORLAND MANAGED SERVICES LTD,1553863,"57,211.92"
Ministry of Justice,HM Courts and Tribunals Service,05-Apr-11,IZ999-RCJ Group,532000-Tangible GBV - Additions,SYKES & SON LTD,1554155,"46,852.20"
Ministry of Justice,HM Courts and Tribunals Service,05-Apr-11,FZ999-Midlands Region,532000-Tangible GBV - Additions,AXIS ELEVATORS LTD,1553189,"122,366.16"
Ministry of Justice,HM Courts and Tribunals Service,05-Apr-11,GZ999-North West Region,532000-Tangible GBV - Additions,RCL BUILDING SERVICES LTD,1553992,"97,277.00"
Ministry of Justice,HM Courts and Tribunals Service,05-Apr-11,GZ999-North West Region,532000-Tangible GBV - Additions,CARILLION PLANNED MAINTENANCE,1553319,"116,165.78"
Ministry of Justice,HM Courts and Tribunals Service,05-Apr-11,BZ999-London Region,532000-Tangible GBV - Additions,BRITSPACE MODULAR BUILDINGS LIMITED,1553266,"224,210.88"
Ministry of Justice,HM Courts and Tribunals Service,05-Apr-11,FZ999-Midlands Region,532000-Tangible GBV - Additions,JD INTERIORS,1553670,"31,858.13"
Ministry of Justice,HM Courts and Tribunals Service,05-Apr-11,HZ999-North East and Yorkshire,532000-Tangible GBV - Additions,CRESTBROOK HEATING LTD,1553384,"54,446.48"
Ministry of Justice,HM Courts and Tribunals Service,05-Apr-11,DZ999-South West Region,532000-Tangible GBV - Additions,MITIE PROPERTY SERVICES (UK) LTD (MPS),1553820,"99,319.99"
Ministry of Justice,HM Courts and Tribunals Service,05-Apr-11,EZ999-Wales Region,532000-Tangible GBV - Additions,RCL BUILDING SERVICES (WALES) LTD,1553991,"42,411.37"
Ministry of Justice,HM Courts and Tribunals Service,05-Apr-11,GZ999-North West Region,532000-Tangible GBV - Additions,CARILLION PLANNED MAINTENANCE,1553320,"84,414.84"
Ministry of Justice,HM Courts and Tribunals Service,05-Apr-11,GZ999-North West Region,532000-Tangible GBV - Additions,CARILLION PLANNED MAINTENANCE,1553320,"60,140.28"
Ministry of Justice,HM Courts and Tribunals Service,05-Apr-11,AG999-Estates Directorate HMCS HQ,532000-Tangible GBV - Additions,GARSIDE & LAYCOCK LTD,1553517,"34,498.63"
Ministry of Justice,HM Courts and Tribunals Service,05-Apr-11,CZ999-South East Region,532000-Tangible GBV - Additions,BAILEY MAINTENANCE LTD,1553196,"64,844.52"
Ministry of Justice,HM Courts and Tribunals Service,05-Apr-11,BZ999-London Region,532000-Tangible GBV - Additions,BREYER GROUP PLC,354929,"67,539.60"
Ministry of Justice,HM Courts and Tribunals Service,05-Apr-11,BZ999-London Region,532000-Tangible GBV - Additions,ACCLAIM CONTRACTS LTD,1553144,"114,278.82"
Ministry of Justice,HM Courts and Tribunals Service,05-Apr-11,GZ999-North West Region,532000-Tangible GBV - Additions,ELLESMERE ENGINEERING CO. LTD,1553466,"85,234.80"
Ministry of Justice,HM Courts and Tribunals Service,05-Apr-11,GZ999-North West Region,532000-Tangible GBV - Additions,GARSIDE & LAYCOCK LTD,1553517,"36,829.92"
Ministry of Justice,HM Courts and Tribunals Service,05-Apr-11,HZ999-North East and Yorkshire,532000-Tangible GBV - Additions,DATIM BUILDING CONTRACTORS LTD,1553405,"38,848.88"
Ministry of Justice,HM Courts and Tribunals Service,05-Apr-11,EZ999-Wales Region,532000-Tangible GBV - Additions,R L DAVIES & SON LTD,1553980,"113,189.96"
Ministry of Justice,HM Courts and Tribunals Service,05-Apr-11,EZ999-Wales Region,532000-Tangible GBV - Additions,R L DAVIES & SON LTD,1553980,"213,252.60"
Ministry of Justice,HM Courts and Tribunals Service,05-Apr-11,EZ999-Wales Region,532000-Tangible GBV - Additions,R L DAVIES & SON LTD,1553980,"353,155.32"
Ministry of Justice,HM Courts and Tribunals Service,05-Apr-11,CZ999-South East Region,532000-Tangible GBV - Additions,PROCARE BUILDING SERVICES LTD,1553969,"95,088.60"
Ministry of Justice,HM Courts and Tribunals Service,05-Apr-11,EZ999-Wales Region,532000-Tangible GBV - Additions,F P HURLEY & SONS LTD,1553484,"57,782.04"
Ministry of Justice,HM Courts and Tribunals Service,05-Apr-11,EZ999-Wales Region,532000-Tangible GBV - Additions,F P HURLEY & SONS LTD,1553484,"246,255.96"
Ministry of Justice,HM Courts and Tribunals Service,05-Apr-11,DZ999-South West Region,532000-Tangible GBV - Additions,ISLWYN PUGH CONSTRUCTION LTD,1553662,"145,921.06"
Ministry of Justice,HM Courts and Tribunals Service,05-Apr-11,DZ999-South West Region,532000-Tangible GBV - Additions,STONE BCI LTD,1554141,"77,369.75"
Ministry of Justice,HM Courts and Tribunals Service,05-Apr-11,DZ999-South West Region,532000-Tangible GBV - Additions,SIMER ENVIRONMENTAL SERVICES LTD,1554079,"53,151.92"
Ministry of Justice,HM Courts and Tribunals Service,05-Apr-11,DZ999-South West Region,532000-Tangible GBV - Additions,STONE BCI LTD,1554141,"31,622.08"
Ministry of Justice,HM Courts and Tribunals Service,06-Apr-11,CZ999-South East Region,532000-Tangible GBV - Additions,VINSTRATA BUILDERS (LONDON) LTD,1559650,"483,233.24"
Ministry of Justice,HM Courts and Tribunals Service,06-Apr-11,EZ999-Wales Region,532000-Tangible GBV - Additions,HENSTAFF CONSTRUCTION LTD,1558749,"49,487.60"
Ministry of Justice,HM Courts and Tribunals Service,06-Apr-11,EZ999-Wales Region,532000-Tangible GBV - Additions,INTEGRAL UK LTD,355782,"68,689.62"
Ministry of Justice,HM Courts and Tribunals Service,06-Apr-11,EZ999-Wales Region,532000-Tangible GBV - Additions,LORNE STEWART PLC,1558846,"25,104.46"
Ministry of Justice,HM Courts and Tribunals Service,06-Apr-11,EZ999-Wales Region,532000-Tangible GBV - Additions,HENSTAFF CONSTRUCTION LTD,1558749,"35,313.18"
Ministry of Justice,HM Courts and Tribunals Service,06-Apr-11,HZ999-North East and Yorkshire,532000-Tangible GBV - Additions,DIMESTAGE (CONSTRUCTION COMPANY) LTD (DCC),1558626,"98,861.34"
Ministry of Justice,HM Courts and Tribunals Service,06-Apr-11,DZ999-South West Region,532000-Tangible GBV - Additions,MITIE TILLEY ROOFING LTD,1558897,"103,803.98"
Ministry of Justice,HM Courts and Tribunals Service,06-Apr-11,CZ999-South East Region,532000-Tangible GBV - Additions,PEXHURST SERVICES LTD,1559496,"521,179.70"
Ministry of Justice,HM Courts and Tribunals Service,06-Apr-11,EZ999-Wales Region,532000-Tangible GBV - Additions,LORNE STEWART PLC,1558846,"38,154.11"
Ministry of Justice,HM Courts and Tribunals Service,06-Apr-11,CZ999-South East Region,532000-Tangible GBV - Additions,VINSTRATA BUILDERS (LONDON) LTD,1559650,"87,551.15"
Ministry of Justice,HM Courts and Tribunals Service,06-Apr-11,EZ999-Wales Region,532000-Tangible GBV - Additions,HENSTAFF CONSTRUCTION LTD,1558749,"40,321.49"
Ministry of Justice,HM Courts and Tribunals Service,08-Apr-11,DZ999-South West Region,532000-Tangible GBV - Additions,STONE BCI LTD,1562301,"35,780.14"
Ministry of Justice,HM Courts and Tribunals Service,08-Apr-11,IZ999-RCJ Group,532000-Tangible GBV - Additions,WILSON JAMES LTD,1562405,"75,449.17"
Ministry of Justice,HM Courts and Tribunals Service,08-Apr-11,IZ999-RCJ Group,532000-Tangible GBV - Additions,WILSON JAMES LTD,1562405,"58,802.93"
Ministry of Justice,HM Courts and Tribunals Service,08-Apr-11,EZ999-Wales Region,532000-Tangible GBV - Additions,HENSTAFF CONSTRUCTION LTD,1561834,"163,116.39"
Ministry of Justice,HM Courts and Tribunals Service,08-Apr-11,IZ999-RCJ Group,532000-Tangible GBV - Additions,WILSON JAMES LTD,1562405,"345,967.40"
Ministry of Justice,HM Courts and Tribunals Service,08-Apr-11,IZ999-RCJ Group,532000-Tangible GBV - Additions,WILSON JAMES LTD,1562405,"93,510.40"
Ministry of Justice,HM Courts and Tribunals Service,08-Apr-11,DZ999-South West Region,532000-Tangible GBV - Additions,TG ROOFING LTD,1562328,"29,972.83"
Ministry of Justice,HM Courts and Tribunals Service,08-Apr-11,CZ999-South East Region,532000-Tangible GBV - Additions,EUROPEAN ASBESTOS SERVICES,1561732,"62,361.60"
Ministry of Justice,HM Courts and Tribunals Service,08-Apr-11,DZ999-South West Region,532000-Tangible GBV - Additions,STRUCTURA UK LIMITED,1562304,"105,075.96"
Ministry of Justice,HM Courts and Tribunals Service,08-Apr-11,DZ999-South West Region,532000-Tangible GBV - Additions,BASTION SECURITY INSTALLATIONS,1561515,"35,143.92"
Ministry of Justice,HM Courts and Tribunals Service,08-Apr-11,FZ999-Midlands Region,532000-Tangible GBV - Additions,OASIS AIR CONDITIONING (MIDLANDS) LTD,1562069,"88,141.20"
Ministry of Justice,HM Courts and Tribunals Service,08-Apr-11,FZ999-Midlands Region,532000-Tangible GBV - Additions,OASIS AIR CONDITIONING (MIDLANDS) LTD,1562069,"73,155.60"
Ministry of Justice,HM Courts and Tribunals Service,08-Apr-11,DZ999-South West Region,532000-Tangible GBV - Additions,AC MECHANICAL SERVICES LTD,360007,"25,785.44"
Ministry of Justice,HM Courts and Tribunals Service,08-Apr-11,DZ999-South West Region,532000-Tangible GBV - Additions,SIMER ENVIRONMENTAL SERVICES LTD,1562260,"56,707.56"
Ministry of Justice,HM Courts and Tribunals Service,12-Apr-11,BZ999-London Region,532000-Tangible GBV - Additions,SYKES & SON LTD,1564973,"271,519.61"
Ministry of Justice,HM Courts and Tribunals Service,12-Apr-11,GZ999-North West Region,532000-Tangible GBV - Additions,MANCHESTER & CHESHIRE CONSTRUCTION CO LTD,1564468,"261,379.82"
Ministry of Justice,HM Courts and Tribunals Service,12-Apr-11,DZ999-South West Region,532000-Tangible GBV - Additions,AC MECHANICAL SERVICES LTD,360505,"53,929.10"
Ministry of Justice,HM Courts and Tribunals Service,12-Apr-11,GZ999-North West Region,532000-Tangible GBV - Additions,ILLINGWORTH & GREGORY LTD,1564347,"44,549.42"
Ministry of Justice,HM Courts and Tribunals Service,12-Apr-11,HZ999-North East and Yorkshire,532000-Tangible GBV - Additions,STRATEGIC TEAM MAINTENANCE CO LTD,1564959,"25,349.18"
Ministry of Justice,HM Courts and Tribunals Service,12-Apr-11,CZ999-South East Region,532000-Tangible GBV - Additions,GALLIFORD TRY CONSTRUCTION LTD CENTRAL,1564232,"893,894.24"
Ministry of Justice,HM Courts and Tribunals Service,12-Apr-11,DZ999-South West Region,532000-Tangible GBV - Additions,LATCHMORE ROOFING LTD,1564421,"27,085.50"
Ministry of Justice,HM Courts and Tribunals Service,12-Apr-11,CZ999-South East Region,532000-Tangible GBV - Additions,PEXHURST SERVICES LTD,1564804,"59,860.24"
Ministry of Justice,HM Courts and Tribunals Service,12-Apr-11,CZ999-South East Region,532000-Tangible GBV - Additions,GALLIFORD TRY CONSTRUCTION LTD CENTRAL,1564232,"671,673.82"
Ministry of Justice,HM Courts and Tribunals Service,12-Apr-11,BZ999-London Region,532000-Tangible GBV - Additions,BREYER GROUP PLC,360516,"148,482.04"
Ministry of Justice,HM Courts and Tribunals Service,12-Apr-11,BZ999-London Region,532000-Tangible GBV - Additions,R&M CLARKSON LTD,1564836,"73,001.12"
Ministry of Justice,HM Courts and Tribunals Service,12-Apr-11,FZ999-Midlands Region,532000-Tangible GBV - Additions,DALY ENGINEERING SERVICES LTD,1564145,"71,744.64"
Ministry of Justice,HM Courts and Tribunals Service,12-Apr-11,FZ999-Midlands Region,532000-Tangible GBV - Additions,MITIE TECHNICAL FACILITIES MANAGEMENT LTD,1564515,"88,013.66"
Ministry of Justice,HM Courts and Tribunals Service,12-Apr-11,AG999-Estates Directorate HMCS HQ,532000-Tangible GBV - Additions,BCE NORTHERN LTD,1563991,"57,000.00"
Ministry of Justice,HM Courts and Tribunals Service,12-Apr-11,GZ999-North West Region,532000-Tangible GBV - Additions,CARILLION PLANNED MAINTENANCE,1564074,"42,618.18"
Ministry of Justice,HM Courts and Tribunals Service,12-Apr-11,GZ999-North West Region,532000-Tangible GBV - Additions,JENNOR UK LTD,1564371,"25,506.44"
Ministry of Justice,HM Courts and Tribunals Service,12-Apr-11,CZ999-South East Region,532000-Tangible GBV - Additions,ARK BUILD PLC,1563958,"253,106.00"
Ministry of Justice,HM Courts and Tribunals Service,12-Apr-11,GZ999-North West Region,532000-Tangible GBV - Additions,AMSPEC LTD,1563948,"107,997.75"
Ministry of Justice,HM Courts and Tribunals Service,13-Apr-11,FZ999-Midlands Region,532000-Tangible GBV - Additions,KERSHAW MECHANICAL SERVICES LTD,1568426,"65,149.92"
Ministry of Justice,HM Courts and Tribunals Service,13-Apr-11,FZ999-Midlands Region,532000-Tangible GBV - Additions,KERSHAW MECHANICAL SERVICES LTD,1568426,"37,130.40"
Ministry of Justice,HM Courts and Tribunals Service,15-Apr-11,CZ999-South East Region,532000-Tangible GBV - Additions,PAVEHALL PLC,1571703,"86,781.83"
Ministry of Justice,HM Courts and Tribunals Service,15-Apr-11,BZ999-London Region,532000-Tangible GBV - Additions,CHILLMECH LTD,1571186,"29,365.82"
Ministry of Justice,HM Courts and Tribunals Service,15-Apr-11,DZ999-South West Region,532000-Tangible GBV - Additions,VEAR BUILDING SERVICES LTD,1571925,"79,174.70"
Ministry of Justice,HM Courts and Tribunals Service,15-Apr-11,EZ999-Wales Region,532000-Tangible GBV - Additions,HENSTAFF CONSTRUCTION LTD,1571391,"352,408.08"
Ministry of Justice,HM Courts and Tribunals Service,15-Apr-11,CZ999-South East Region,532000-Tangible GBV - Additions,SIMER ENVIRONMENTAL SERVICES LTD,1571827,"36,180.00"
Ministry of Justice,HM Courts and Tribunals Service,15-Apr-11,GZ999-North West Region,532000-Tangible GBV - Additions,CARILLION PLANNED MAINTENANCE,1571174,"32,743.01"
Ministry of Justice,HM Courts and Tribunals Service,15-Apr-11,EZ999-Wales Region,532000-Tangible GBV - Additions,R L DAVIES & SON LTD,1571753,"116,425.09"
Ministry of Justice,HM Courts and Tribunals Service,19-Apr-11,DZ999-South West Region,532000-Tangible GBV - Additions,KIER FACILITIES SERVICES LTD,1574048,"54,441.16"
Ministry of Justice,HM Courts and Tribunals Service,19-Apr-11,BZ999-London Region,532000-Tangible GBV - Additions,BRITSPACE MODULAR BUILDINGS LIMITED,1573565,"276,733.72"
Ministry of Justice,HM Courts and Tribunals Service,19-Apr-11,FZ999-Midlands Region,532000-Tangible GBV - Additions,MCDOWALL AIR CONDITIONING (UK) LTD,1574184,"29,317.10"
Ministry of Justice,HM Courts and Tribunals Service,19-Apr-11,IZ999-RCJ Group,532000-Tangible GBV - Additions,ROTARY SOUTHERN LTD,1575153,"88,254.67"
Ministry of Justice,HM Courts and Tribunals Service,19-Apr-11,GZ999-North West Region,532000-Tangible GBV - Additions,AMSPEC LTD,1573459,"147,787.39"
Ministry of Justice,HM Courts and Tribunals Service,19-Apr-11,BZ999-London Region,532000-Tangible GBV - Additions,LAING O'ROURKE CONSTRUCTION SOUTH LTD,1574079,"1,503,928.80"
Ministry of Justice,HM Courts and Tribunals Service,19-Apr-11,CZ999-South East Region,532000-Tangible GBV - Additions,VINSTRATA BUILDERS (LONDON) LTD,1575338,"82,155.60"
Ministry of Justice,HM Courts and Tribunals Service,19-Apr-11,IZ999-RCJ Group,532000-Tangible GBV - Additions,VINSTRATA BUILDERS (LONDON) LTD,1575338,"116,362.50"
Ministry of Justice,HM Courts and Tribunals Service,19-Apr-11,GZ999-North West Region,532000-Tangible GBV - Additions,RCL BUILDING SERVICES LTD,1575122,"143,127.76"
Ministry of Justice,HM Courts and Tribunals Service,19-Apr-11,GZ999-North West Region,532000-Tangible GBV - Additions,ERIC CHARLESWORTH  LTD,1573787,"52,673.40"
Ministry of Justice,HM Courts and Tribunals Service,19-Apr-11,CZ999-South East Region,532000-Tangible GBV - Additions,VINSTRATA BUILDERS (LONDON) LTD,1575338,"131,019.76"
Ministry of Justice,HM Courts and Tribunals Service,19-Apr-11,BZ999-London Region,532000-Tangible GBV - Additions,METSHAPE LTD,1574205,"72,595.14"
Ministry of Justice,HM Courts and Tribunals Service,19-Apr-11,FZ999-Midlands Region,532000-Tangible GBV - Additions,M W CRIPWELL LTD,1574128,"99,625.28"
Ministry of Justice,HM Courts and Tribunals Service,19-Apr-11,FZ999-Midlands Region,532000-Tangible GBV - Additions,REIRSE RYAN LTD,1575129,"117,984.00"
Ministry of Justice,HM Courts and Tribunals Service,20-Apr-11,HZ999-North East and Yorkshire,532000-Tangible GBV - Additions,MITIE TECHNICAL FACILITIES MANAGEMENT LTD,1575739,"60,694.14"
Ministry of Justice,HM Courts and Tribunals Service,21-Apr-11,CZ999-South East Region,532000-Tangible GBV - Additions,SIMER ENVIRONMENTAL SERVICES LTD,1581711,"40,773.00"
Ministry of Justice,HM Courts and Tribunals Service,21-Apr-11,CZ999-South East Region,532000-Tangible GBV - Additions,SIMER ENVIRONMENTAL SERVICES LTD,1581711,"62,190.60"
Ministry of Justice,HM Courts and Tribunals Service,21-Apr-11,CZ999-South East Region,532000-Tangible GBV - Additions,SIMER ENVIRONMENTAL SERVICES LTD,1581711,"68,954.40"
Ministry of Justice,HM Courts and Tribunals Service,27-Apr-11,BZ999-London Region,532000-Tangible GBV - Additions,ARK BUILD PLC,1585083,"42,896.05"
Ministry of Justice,HM Courts and Tribunals Service,27-Apr-11,EZ999-Wales Region,532000-Tangible GBV - Additions,HENSTAFF CONSTRUCTION LTD,1585244,"53,414.86"
Ministry of Justice,HM Courts and Tribunals Service,27-Apr-11,CZ999-South East Region,532000-Tangible GBV - Additions,ARK BUILD PLC,1585083,"138,316.92"
Ministry of Justice,HM Courts and Tribunals Service,27-Apr-11,DZ999-South West Region,532000-Tangible GBV - Additions,ISLWYN PUGH CONSTRUCTION LTD,1585271,"51,259.33"
Ministry of Justice,HM Courts and Tribunals Service,27-Apr-11,BZ999-London Region,532000-Tangible GBV - Additions,SYKES & SON LTD,1585919,"248,637.85"
Ministry of Justice,HM Courts and Tribunals Service,12-Apr-11,AV322-CP Change Management SUPS,532000-Tangible GBV - Additions,LOGICA UK LTD,1564450,"73,873.20"
Ministry of Justice,HM Courts and Tribunals Service,19-Apr-11,AV322-CP Change Management SUPS,532000-Tangible GBV - Additions,LOGICA UK LTD,1574117,"93,984.00"
Ministry of Justice,HM Courts and Tribunals Service,21-Apr-11,AV329-CP-Mag. Courts Operational Bus.sys,532000-Tangible GBV - Additions,LOGICA UK LTD,1580148,"36,060.28"
Ministry of Justice,HM Courts and Tribunals Service,08-Apr-11,IZ999-RCJ Group,532000-Tangible GBV - Additions,ATOS ORIGIN IT SERVICES UK LTD,1561496,"161,461.20"
Ministry of Justice,HM Courts and Tribunals Service,12-Apr-11,AV322-CP Change Management SUPS,532000-Tangible GBV - Additions,ATOS ORIGIN IT SERVICES UK LTD,1563967,"149,078.40"
Ministry of Justice,HM Courts and Tribunals Service,08-Apr-11,IZ999-RCJ Group,512000-Intangible GBV - Additions,ADOBE SYSTEMS SOFTWARE IRELAND LTD,1561464,"68,897.43"
Ministry of Justice,HM Courts and Tribunals Service,19-Apr-11,AV329-CP-Mag. Courts Operational Bus.sys,512000-Intangible GBV - Additions,LOGICA UK LTD,1574117,"59,846.70"
Ministry of Justice,HM Courts and Tribunals Service,19-Apr-11,AV322-CP Change Management SUPS,512000-Intangible GBV - Additions,LOGICA UK LTD,1574117,"237,058.80"
Ministry of Justice,HM Courts and Tribunals Service,01-Apr-11,GZ999-North West Region,610300-Debtors < 1 Year - Deposits & Advances,NEOPOST LTD,1550505,"124,944.00"
Ministry of Justice,HM Courts and Tribunals Service,08-Apr-11,GZ999-North West Region,610300-Debtors < 1 Year - Deposits & Advances,NEOPOST LTD,1562046,"101,799.00"
Ministry of Justice,HM Courts and Tribunals Service,08-Apr-11,GZ999-North West Region,610300-Debtors < 1 Year - Deposits & Advances,NEOPOST LTD,1562046,"35,250.00"
Ministry of Justice,HM Courts and Tribunals Service,15-Apr-11,GZ999-North West Region,610300-Debtors < 1 Year - Deposits & Advances,NEOPOST LTD,1571589,"128,480.00"
Ministry of Justice,HM Courts and Tribunals Service,21-Apr-11,GZ999-North West Region,610300-Debtors < 1 Year - Deposits & Advances,NEOPOST LTD,1580213,"124,635.00"
Ministry of Justice,HM Courts and Tribunals Service,28-Apr-11,GZ999-North West Region,610300-Debtors < 1 Year - Deposits & Advances,NEOPOST LTD,1586190,"120,000.00"
Ministry of Justice,HM Courts and Tribunals Service,01-Apr-11,EZ999-Wales Region,610400-Debtors <1 year - Prepayments & Accrued Income,LAMBERT SMITH HAMPTON,1550433,"30,480.00"
Ministry of Justice,HM Courts and Tribunals Service,05-Apr-11,HZ999-North East and Yorkshire,610400-Debtors <1 year - Prepayments & Accrued Income,GVA GRIMLEY LTD,1553570,"43,845.90"
Ministry of Justice,HM Courts and Tribunals Service,06-Apr-11,CZ999-South East Region,610400-Debtors <1 year - Prepayments & Accrued Income,DTZ DEBENHAM TIE LEUNG,6341,"29,102.00"
Ministry of Justice,HM Courts and Tribunals Service,13-Apr-11,GZ999-North West Region,610400-Debtors <1 year - Prepayments & Accrued Income,LANCASHIRE POLICE AUTHORITY,1568430,"100,469.74"
Ministry of Justice,HM Courts and Tribunals Service,28-Apr-11,FZ999-Midlands Region,610400-Debtors <1 year - Prepayments & Accrued Income,COLLINGWOOD RIGBY,1586031,"76,041.23"
Ministry of Justice,HM Courts and Tribunals Service,04-Apr-11,HZ999-North East and Yorkshire,610400-Debtors <1 year - Prepayments & Accrued Income,HULL CITY COUNCIL,1551664,"30,123.59"
Ministry of Justice,HM Courts and Tribunals Service,04-Apr-11,BZ999-London Region,610400-Debtors <1 year - Prepayments & Accrued Income,CROYDON COUNCIL,1551615,"68,471.40"
Ministry of Justice,HM Courts and Tribunals Service,04-Apr-11,BZ999-London Region,610400-Debtors <1 year - Prepayments & Accrued Income,CROYDON COUNCIL,1551615,"30,154.62"
Ministry of Justice,HM Courts and Tribunals Service,04-Apr-11,CZ999-South East Region,610400-Debtors <1 year - Prepayments & Accrued Income,CANTERBURY CITY COUNCIL,1551584,"36,625.09"
Ministry of Justice,HM Courts and Tribunals Service,04-Apr-11,FZ999-Midlands Region,610400-Debtors <1 year - Prepayments & Accrued Income,NORTHAMPTON BOROUGH COUNCIL,1551731,"36,841.81"
Ministry of Justice,HM Courts and Tribunals Service,04-Apr-11,CZ999-South East Region,610400-Debtors <1 year - Prepayments & Accrued Income,READING BOROUGH COUNCIL,1551743,"45,077.03"
Ministry of Justice,HM Courts and Tribunals Service,04-Apr-11,HZ999-North East and Yorkshire,610400-Debtors <1 year - Prepayments & Accrued Income,LEEDS CITY COUNCIL,1551674,"62,847.79"
Ministry of Justice,HM Courts and Tribunals Service,04-Apr-11,HZ999-North East and Yorkshire,610400-Debtors <1 year - Prepayments & Accrued Income,LEEDS CITY COUNCIL,1551674,"48,544.50"
Ministry of Justice,HM Courts and Tribunals Service,04-Apr-11,FZ999-Midlands Region,610400-Debtors <1 year - Prepayments & Accrued Income,BIRMINGHAM CITY COUNCIL,1551560,"27,956.43"
Ministry of Justice,HM Courts and Tribunals Service,04-Apr-11,FZ999-Midlands Region,610400-Debtors <1 year - Prepayments & Accrued Income,BIRMINGHAM CITY COUNCIL,1551560,"127,862.74"
Ministry of Justice,HM Courts and Tribunals Service,04-Apr-11,FZ999-Midlands Region,610400-Debtors <1 year - Prepayments & Accrued Income,BIRMINGHAM CITY COUNCIL,1551560,"42,259.72"
Ministry of Justice,HM Courts and Tribunals Service,04-Apr-11,FZ999-Midlands Region,610400-Debtors <1 year - Prepayments & Accrued Income,WOLVERHAMPTON CITY COUNCIL,1551821,"33,807.77"
Ministry of Justice,HM Courts and Tribunals Service,04-Apr-11,IZ999-RCJ Group,610400-Debtors <1 year - Prepayments & Accrued Income,CITY OF WESTMINSTER,1551601,"301,546.25"
Ministry of Justice,HM Courts and Tribunals Service,04-Apr-11,BZ999-London Region,610400-Debtors <1 year - Prepayments & Accrued Income,CITY OF WESTMINSTER,1551601,"52,760.44"
Ministry of Justice,HM Courts and Tribunals Service,04-Apr-11,BZ999-London Region,610400-Debtors <1 year - Prepayments & Accrued Income,CITY OF WESTMINSTER,1551601,"27,926.13"
Ministry of Justice,HM Courts and Tribunals Service,04-Apr-11,BZ999-London Region,610400-Debtors <1 year - Prepayments & Accrued Income,CITY OF WESTMINSTER,1551601,"35,095.34"
Ministry of Justice,HM Courts and Tribunals Service,04-Apr-11,BZ999-London Region,610400-Debtors <1 year - Prepayments & Accrued Income,CITY OF WESTMINSTER,1551601,"46,252.21"
Ministry of Justice,HM Courts and Tribunals Service,04-Apr-11,BZ999-London Region,610400-Debtors <1 year - Prepayments & Accrued Income,CITY OF WESTMINSTER,1551601,"31,551.28"
Ministry of Justice,HM Courts and Tribunals Service,04-Apr-11,CZ999-South East Region,610400-Debtors <1 year - Prepayments & Accrued Income,BASILDON DISTRICT COUNCIL,1551555,"33,374.34"
Ministry of Justice,HM Courts and Tribunals Service,04-Apr-11,DZ999-South West Region,610400-Debtors <1 year - Prepayments & Accrued Income,BOURNEMOUTH BOROUGH COUNCIL,1551571,"38,358.82"
Ministry of Justice,HM Courts and Tribunals Service,04-Apr-11,HZ999-North East and Yorkshire,610400-Debtors <1 year - Prepayments & Accrued Income,BRADFORD METROPOLITAN COUNCIL,1551573,"53,312.26"
Ministry of Justice,HM Courts and Tribunals Service,04-Apr-11,DZ999-South West Region,610400-Debtors <1 year - Prepayments & Accrued Income,BRISTOL CITY COUNCIL,1551577,"69,349.28"
Ministry of Justice,HM Courts and Tribunals Service,04-Apr-11,DZ999-South West Region,610400-Debtors <1 year - Prepayments & Accrued Income,BRISTOL CITY COUNCIL,1551577,"47,677.63"
Ministry of Justice,HM Courts and Tribunals Service,04-Apr-11,DZ999-South West Region,610400-Debtors <1 year - Prepayments & Accrued Income,BRISTOL CITY COUNCIL,1551577,"44,210.17"
Ministry of Justice,HM Courts and Tribunals Service,04-Apr-11,EZ999-Wales Region,610400-Debtors <1 year - Prepayments & Accrued Income,CARDIFF COUNTY COUNCIL,1551585,"34,916.88"
Ministry of Justice,HM Courts and Tribunals Service,04-Apr-11,DZ999-South West Region,610400-Debtors <1 year - Prepayments & Accrued Income,EXETER CITY COUNCIL,1551645,"43,126.58"
Ministry of Justice,HM Courts and Tribunals Service,04-Apr-11,GZ999-North West Region,610400-Debtors <1 year - Prepayments & Accrued Income,LIVERPOOL CITY COUNCIL,1551677,"125,695.57"
Ministry of Justice,HM Courts and Tribunals Service,04-Apr-11,GZ999-North West Region,610400-Debtors <1 year - Prepayments & Accrued Income,LIVERPOOL CITY COUNCIL,1551677,"69,782.71"
Ministry of Justice,HM Courts and Tribunals Service,04-Apr-11,BZ999-London Region,610400-Debtors <1 year - Prepayments & Accrued Income,LONDON BOROUGH OF ISLINGTON,1551692,"49,426.38"
Ministry of Justice,HM Courts and Tribunals Service,04-Apr-11,BZ999-London Region,610400-Debtors <1 year - Prepayments & Accrued Income,LONDON BOROUGH OF SOUTHWARK,1551698,"43,984.94"
Ministry of Justice,HM Courts and Tribunals Service,04-Apr-11,BZ999-London Region,610400-Debtors <1 year - Prepayments & Accrued Income,LONDON BOROUGH OF SOUTHWARK,1551698,"104,294.19"
Ministry of Justice,HM Courts and Tribunals Service,04-Apr-11,BZ999-London Region,610400-Debtors <1 year - Prepayments & Accrued Income,LONDON BOROUGH OF SOUTHWARK,1551698,"84,342.26"
Ministry of Justice,HM Courts and Tribunals Service,04-Apr-11,BZ999-London Region,610400-Debtors <1 year - Prepayments & Accrued Income,LONDON BOROUGH OF SOUTHWARK,1551698,"31,514.98"
Ministry of Justice,HM Courts and Tribunals Service,04-Apr-11,CZ999-South East Region,610400-Debtors <1 year - Prepayments & Accrued Income,MAIDSTONE BOROUGH COUNCIL,1551703,"57,646.59"
Ministry of Justice,HM Courts and Tribunals Service,04-Apr-11,FZ999-Midlands Region,610400-Debtors <1 year - Prepayments & Accrued Income,DERBY CITY COUNCIL,1551622,"27,306.28"
Ministry of Justice,HM Courts and Tribunals Service,04-Apr-11,FZ999-Midlands Region,610400-Debtors <1 year - Prepayments & Accrued Income,CITY OF STOKE ON TRENT,1551600,"30,340.31"
Ministry of Justice,HM Courts and Tribunals Service,04-Apr-11,IZ999-RCJ Group,610400-Debtors <1 year - Prepayments & Accrued Income,LONDON BOROUGH OF CAMDEN,1551683,"154,174.02"
Ministry of Justice,HM Courts and Tribunals Service,04-Apr-11,GZ999-North West Region,610400-Debtors <1 year - Prepayments & Accrued Income,CARLISLE CITY COUNCIL,1551586,"25,355.83"
Ministry of Justice,HM Courts and Tribunals Service,04-Apr-11,DZ999-South West Region,610400-Debtors <1 year - Prepayments & Accrued Income,WINCHESTER CITY COUNCIL,1551819,"41,814.04"
Ministry of Justice,HM Courts and Tribunals Service,04-Apr-11,HZ999-North East and Yorkshire,610400-Debtors <1 year - Prepayments & Accrued Income,MIDDLESBROUGH COUNCIL,1551712,"61,114.05"
Ministry of Justice,HM Courts and Tribunals Service,04-Apr-11,HZ999-North East and Yorkshire,610400-Debtors <1 year - Prepayments & Accrued Income,MIDDLESBROUGH COUNCIL,1551712,"28,823.29"
Ministry of Justice,HM Courts and Tribunals Service,04-Apr-11,HZ999-North East and Yorkshire,610400-Debtors <1 year - Prepayments & Accrued Income,NEWCASTLE UPON TYNE CITY COUNCIL,1551720,"64,148.08"
Ministry of Justice,HM Courts and Tribunals Service,04-Apr-11,CZ999-South East Region,610400-Debtors <1 year - Prepayments & Accrued Income,NORWICH CITY COUNCIL,1551733,"28,606.58"
Ministry of Justice,HM Courts and Tribunals Service,04-Apr-11,DZ999-South West Region,610400-Debtors <1 year - Prepayments & Accrued Income,PORTSMOUTH CITY COUNCIL,1551739,"41,609.57"
Ministry of Justice,HM Courts and Tribunals Service,04-Apr-11,GZ999-North West Region,610400-Debtors <1 year - Prepayments & Accrued Income,PRESTON CITY COUNCIL,1551741,"51,145.09"
Ministry of Justice,HM Courts and Tribunals Service,04-Apr-11,DZ999-South West Region,610400-Debtors <1 year - Prepayments & Accrued Income,SOUTHAMPTON CITY COUNCIL,1551777,"30,990.46"
Ministry of Justice,HM Courts and Tribunals Service,04-Apr-11,DZ999-South West Region,610400-Debtors <1 year - Prepayments & Accrued Income,SOUTHAMPTON CITY COUNCIL,1551777,"37,708.67"
Ministry of Justice,HM Courts and Tribunals Service,04-Apr-11,CZ999-South East Region,610400-Debtors <1 year - Prepayments & Accrued Income,ST ALBANS CITY & DISTRICT COUNCIL,1551780,"32,507.48"
Ministry of Justice,HM Courts and Tribunals Service,04-Apr-11,FZ999-Midlands Region,610400-Debtors <1 year - Prepayments & Accrued Income,CITY OF LINCOLN COUNCIL,1551598,"28,389.86"
Ministry of Justice,HM Courts and Tribunals Service,04-Apr-11,FZ999-Midlands Region,610400-Debtors <1 year - Prepayments & Accrued Income,COVENTRY CITY COUNCIL,1551612,"26,526.58"
Ministry of Justice,HM Courts and Tribunals Service,04-Apr-11,HZ999-North East and Yorkshire,610400-Debtors <1 year - Prepayments & Accrued Income,SHEFFIELD CITY COUNCIL,1551762,"39,225.69"
Ministry of Justice,HM Courts and Tribunals Service,04-Apr-11,HZ999-North East and Yorkshire,610400-Debtors <1 year - Prepayments & Accrued Income,SHEFFIELD CITY COUNCIL,1551762,"79,318.24"
Ministry of Justice,HM Courts and Tribunals Service,04-Apr-11,BZ999-London Region,610400-Debtors <1 year - Prepayments & Accrued Income,LONDON BOROUGH OF BRENT,1551681,"35,822.79"
Ministry of Justice,HM Courts and Tribunals Service,04-Apr-11,BZ999-London Region,610400-Debtors <1 year - Prepayments & Accrued Income,LONDON BOROUGH OF HARROW,1551688,"46,478.93"
Ministry of Justice,HM Courts and Tribunals Service,04-Apr-11,BZ999-London Region,610400-Debtors <1 year - Prepayments & Accrued Income,LONDON BOROUGH OF HAMMERSMITH & FULHAM,1551686,"42,241.53"
Ministry of Justice,HM Courts and Tribunals Service,04-Apr-11,CZ999-South East Region,610400-Debtors <1 year - Prepayments & Accrued Income,LUTON BOROUGH COUNCIL,1551702,"31,640.61"
Ministry of Justice,HM Courts and Tribunals Service,04-Apr-11,BZ999-London Region,610400-Debtors <1 year - Prepayments & Accrued Income,LONDON BOROUGH OF BROMLEY,1551682,"30,381.35"
Ministry of Justice,HM Courts and Tribunals Service,04-Apr-11,BZ999-London Region,610400-Debtors <1 year - Prepayments & Accrued Income,ROYAL BOROUGH OF KINGSTON UPON THAMES,1551751,"87,516.43"
Ministry of Justice,HM Courts and Tribunals Service,04-Apr-11,BZ999-London Region,610400-Debtors <1 year - Prepayments & Accrued Income,LONDON BOROUGH OF HARINGEY,1551687,"53,960.91"
Ministry of Justice,HM Courts and Tribunals Service,04-Apr-11,HZ999-North East and Yorkshire,610400-Debtors <1 year - Prepayments & Accrued Income,ROTHERHAM METROPOLITAN BOROUGH COUNCIL,1551750,"25,139.11"
Ministry of Justice,HM Courts and Tribunals Service,04-Apr-11,BZ999-London Region,610400-Debtors <1 year - Prepayments & Accrued Income,LONDON BOROUGH OF HOUNSLOW,1551691,"59,512.87"
Ministry of Justice,HM Courts and Tribunals Service,04-Apr-11,BZ999-London Region,610400-Debtors <1 year - Prepayments & Accrued Income,LONDON BOROUGH OF GREENWICH,1551685,"67,564.50"
Ministry of Justice,HM Courts and Tribunals Service,04-Apr-11,BZ999-London Region,610400-Debtors <1 year - Prepayments & Accrued Income,LONDON BOROUGH OF NEWHAM,1551695,"31,741.71"
Ministry of Justice,HM Courts and Tribunals Service,04-Apr-11,BZ999-London Region,610400-Debtors <1 year - Prepayments & Accrued Income,LONDON BOROUGH OF REDBRIDGE,1551696,"44,665.12"
Ministry of Justice,HM Courts and Tribunals Service,04-Apr-11,BZ999-London Region,610400-Debtors <1 year - Prepayments & Accrued Income,LONDON BOROUGH OF TOWER HAMLETS,1551700,"41,944.40"
Ministry of Justice,HM Courts and Tribunals Service,04-Apr-11,GZ999-North West Region,610400-Debtors <1 year - Prepayments & Accrued Income,MANCHESTER CITY COUNCIL,1551704,"47,436.00"
Ministry of Justice,HM Courts and Tribunals Service,04-Apr-11,GZ999-North West Region,610400-Debtors <1 year - Prepayments & Accrued Income,MANCHESTER CITY COUNCIL,1551704,"51,578.53"
Ministry of Justice,HM Courts and Tribunals Service,04-Apr-11,GZ999-North West Region,610400-Debtors <1 year - Prepayments & Accrued Income,MANCHESTER CITY COUNCIL,1551704,"227,552.33"
Ministry of Justice,HM Courts and Tribunals Service,04-Apr-11,CZ999-South East Region,610400-Debtors <1 year - Prepayments & Accrued Income,OXFORD CITY COUNCIL,1551736,"26,872.85"
Ministry of Justice,HM Courts and Tribunals Service,04-Apr-11,FZ999-Midlands Region,610400-Debtors <1 year - Prepayments & Accrued Income,NOTTINGHAM CITY COUNCIL,352795,"34,891.36"
Ministry of Justice,HM Courts and Tribunals Service,04-Apr-11,FZ999-Midlands Region,610400-Debtors <1 year - Prepayments & Accrued Income,NOTTINGHAM CITY COUNCIL,352795,"67,182.12"
Ministry of Justice,HM Courts and Tribunals Service,04-Apr-11,FZ999-Midlands Region,610400-Debtors <1 year - Prepayments & Accrued Income,LEICESTER CITY COUNCIL,1551675,"30,990.46"
Ministry of Justice,HM Courts and Tribunals Service,05-Apr-11,TR200-Regional South,610400-Debtors <1 year - Prepayments & Accrued Income,LONDON BOROUGH OF ISLINGTON,1553124,"76,633.56"
Ministry of Justice,HM Courts and Tribunals Service,05-Apr-11,TR200-Regional South,610400-Debtors <1 year - Prepayments & Accrued Income,CITY OF LONDON,1553115,"61,299.24"
Ministry of Justice,HM Courts and Tribunals Service,05-Apr-11,TR140-Finance & Resources (Estates),610400-Debtors <1 year - Prepayments & Accrued Income,LONDON BOROUGH OF CAMDEN,1553122,"55,774.72"
Ministry of Justice,HM Courts and Tribunals Service,05-Apr-11,TR200-Regional South,610400-Debtors <1 year - Prepayments & Accrued Income,LONDON BOROUGH OF CAMDEN,1553122,"29,701.17"
Ministry of Justice,HM Courts and Tribunals Service,11-Apr-11,CZ999-South East Region,610400-Debtors <1 year - Prepayments & Accrued Income,CHELMSFORD BOROUGH COUNCIL,1563306,"30,123.59"
Ministry of Justice,HM Courts and Tribunals Service,11-Apr-11,IZ999-RCJ Group,610400-Debtors <1 year - Prepayments & Accrued Income,CITY OF LONDON,1563307,"34,080.55"
Ministry of Justice,HM Courts and Tribunals Service,11-Apr-11,CZ999-South East Region,610400-Debtors <1 year - Prepayments & Accrued Income,CHELMSFORD BOROUGH COUNCIL,1563306,"26,656.13"
Ministry of Justice,HM Courts and Tribunals Service,21-Apr-11,BZ999-London Region,610400-Debtors <1 year - Prepayments & Accrued Income,LONDON BOROUGH OF BRENT,1579762,"35,787.00"
Ministry of Justice,HM Courts and Tribunals Service,21-Apr-11,BZ999-London Region,610400-Debtors <1 year - Prepayments & Accrued Income,LONDON BOROUGH OF HARROW,1579770,"46,432.50"
Ministry of Justice,HM Courts and Tribunals Service,21-Apr-11,BZ999-London Region,610400-Debtors <1 year - Prepayments & Accrued Income,LONDON BOROUGH OF HAMMERSMITH & FULHAM,1579768,"42,199.33"
Ministry of Justice,HM Courts and Tribunals Service,21-Apr-11,CZ999-South East Region,610400-Debtors <1 year - Prepayments & Accrued Income,LUTON BOROUGH COUNCIL,1579784,"31,609.00"
Ministry of Justice,HM Courts and Tribunals Service,21-Apr-11,BZ999-London Region,610400-Debtors <1 year - Prepayments & Accrued Income,LONDON BOROUGH OF BROMLEY,1579763,"30,351.00"
Ministry of Justice,HM Courts and Tribunals Service,21-Apr-11,BZ999-London Region,610400-Debtors <1 year - Prepayments & Accrued Income,ROYAL BOROUGH OF KINGSTON UPON THAMES,1579835,"87,429.00"
Ministry of Justice,HM Courts and Tribunals Service,21-Apr-11,BZ999-London Region,610400-Debtors <1 year - Prepayments & Accrued Income,LONDON BOROUGH OF HARINGEY,1579769,"53,907.00"
Ministry of Justice,HM Courts and Tribunals Service,21-Apr-11,HZ999-North East and Yorkshire,610400-Debtors <1 year - Prepayments & Accrued Income,ROTHERHAM METROPOLITAN BOROUGH COUNCIL,1579834,"25,114.00"
Ministry of Justice,HM Courts and Tribunals Service,21-Apr-11,BZ999-London Region,610400-Debtors <1 year - Prepayments & Accrued Income,LONDON BOROUGH OF HOUNSLOW,1579773,"59,453.42"
Ministry of Justice,HM Courts and Tribunals Service,21-Apr-11,BZ999-London Region,610400-Debtors <1 year - Prepayments & Accrued Income,LONDON BOROUGH OF GREENWICH,1579767,"67,497.00"
Ministry of Justice,HM Courts and Tribunals Service,21-Apr-11,BZ999-London Region,610400-Debtors <1 year - Prepayments & Accrued Income,LONDON BOROUGH OF NEWHAM,1579777,"31,710.00"
Ministry of Justice,HM Courts and Tribunals Service,21-Apr-11,BZ999-London Region,610400-Debtors <1 year - Prepayments & Accrued Income,LONDON BOROUGH OF REDBRIDGE,1579778,"44,620.50"
Ministry of Justice,HM Courts and Tribunals Service,21-Apr-11,BZ999-London Region,610400-Debtors <1 year - Prepayments & Accrued Income,LONDON BOROUGH OF TOWER HAMLETS,1579782,"41,902.50"
Ministry of Justice,HM Courts and Tribunals Service,21-Apr-11,GZ999-North West Region,610400-Debtors <1 year - Prepayments & Accrued Income,MANCHESTER CITY COUNCIL,1579786,"47,388.61"
Ministry of Justice,HM Courts and Tribunals Service,21-Apr-11,GZ999-North West Region,610400-Debtors <1 year - Prepayments & Accrued Income,MANCHESTER CITY COUNCIL,1579786,"51,527.00"
Ministry of Justice,HM Courts and Tribunals Service,21-Apr-11,GZ999-North West Region,610400-Debtors <1 year - Prepayments & Accrued Income,MANCHESTER CITY COUNCIL,1579786,"227,325.00"
Ministry of Justice,HM Courts and Tribunals Service,21-Apr-11,CZ999-South East Region,610400-Debtors <1 year - Prepayments & Accrued Income,OXFORD CITY COUNCIL,1579819,"26,846.00"
Ministry of Justice,HM Courts and Tribunals Service,21-Apr-11,FZ999-Midlands Region,610400-Debtors <1 year - Prepayments & Accrued Income,NOTTINGHAM CITY COUNCIL,370570,"34,856.50"
Ministry of Justice,HM Courts and Tribunals Service,21-Apr-11,FZ999-Midlands Region,610400-Debtors <1 year - Prepayments & Accrued Income,NOTTINGHAM CITY COUNCIL,370570,"67,115.00"
Ministry of Justice,HM Courts and Tribunals Service,21-Apr-11,FZ999-Midlands Region,610400-Debtors <1 year - Prepayments & Accrued Income,LEICESTER CITY COUNCIL,1579756,"30,959.50"
Ministry of Justice,HM Courts and Tribunals Service,21-Apr-11,HZ999-North East and Yorkshire,610400-Debtors <1 year - Prepayments & Accrued Income,HULL CITY COUNCIL,1579745,"30,093.50"
Ministry of Justice,HM Courts and Tribunals Service,21-Apr-11,BZ999-London Region,610400-Debtors <1 year - Prepayments & Accrued Income,CROYDON COUNCIL,1579694,"68,403.00"
Ministry of Justice,HM Courts and Tribunals Service,21-Apr-11,BZ999-London Region,610400-Debtors <1 year - Prepayments & Accrued Income,CROYDON COUNCIL,1579694,"30,124.50"
Ministry of Justice,HM Courts and Tribunals Service,21-Apr-11,CZ999-South East Region,610400-Debtors <1 year - Prepayments & Accrued Income,CANTERBURY CITY COUNCIL,1579661,"36,588.50"
Ministry of Justice,HM Courts and Tribunals Service,21-Apr-11,FZ999-Midlands Region,610400-Debtors <1 year - Prepayments & Accrued Income,NORTHAMPTON BOROUGH COUNCIL,1579814,"36,805.00"
Ministry of Justice,HM Courts and Tribunals Service,21-Apr-11,CZ999-South East Region,610400-Debtors <1 year - Prepayments & Accrued Income,READING BOROUGH COUNCIL,1579827,"45,032.00"
Ministry of Justice,HM Courts and Tribunals Service,21-Apr-11,HZ999-North East and Yorkshire,610400-Debtors <1 year - Prepayments & Accrued Income,LEEDS CITY COUNCIL,1579755,"62,785.00"
Ministry of Justice,HM Courts and Tribunals Service,21-Apr-11,HZ999-North East and Yorkshire,610400-Debtors <1 year - Prepayments & Accrued Income,LEEDS CITY COUNCIL,1579755,"48,496.00"
Ministry of Justice,HM Courts and Tribunals Service,21-Apr-11,FZ999-Midlands Region,610400-Debtors <1 year - Prepayments & Accrued Income,BIRMINGHAM CITY COUNCIL,1579634,"27,928.50"
Ministry of Justice,HM Courts and Tribunals Service,21-Apr-11,FZ999-Midlands Region,610400-Debtors <1 year - Prepayments & Accrued Income,BIRMINGHAM CITY COUNCIL,1579634,"127,735.00"
Ministry of Justice,HM Courts and Tribunals Service,21-Apr-11,FZ999-Midlands Region,610400-Debtors <1 year - Prepayments & Accrued Income,BIRMINGHAM CITY COUNCIL,1579634,"42,217.50"
Ministry of Justice,HM Courts and Tribunals Service,21-Apr-11,FZ999-Midlands Region,610400-Debtors <1 year - Prepayments & Accrued Income,WOLVERHAMPTON CITY COUNCIL,1579905,"33,774.00"
Ministry of Justice,HM Courts and Tribunals Service,21-Apr-11,IZ999-RCJ Group,610400-Debtors <1 year - Prepayments & Accrued Income,CITY OF WESTMINSTER,1579679,"301,245.00"
Ministry of Justice,HM Courts and Tribunals Service,21-Apr-11,BZ999-London Region,610400-Debtors <1 year - Prepayments & Accrued Income,CITY OF WESTMINSTER,1579679,"52,707.73"
Ministry of Justice,HM Courts and Tribunals Service,21-Apr-11,BZ999-London Region,610400-Debtors <1 year - Prepayments & Accrued Income,CITY OF WESTMINSTER,1579679,"27,898.23"
Ministry of Justice,HM Courts and Tribunals Service,21-Apr-11,BZ999-London Region,610400-Debtors <1 year - Prepayments & Accrued Income,CITY OF WESTMINSTER,1579679,"35,060.28"
Ministry of Justice,HM Courts and Tribunals Service,21-Apr-11,BZ999-London Region,610400-Debtors <1 year - Prepayments & Accrued Income,CITY OF WESTMINSTER,1579679,"46,206.00"
Ministry of Justice,HM Courts and Tribunals Service,21-Apr-11,BZ999-London Region,610400-Debtors <1 year - Prepayments & Accrued Income,CITY OF WESTMINSTER,1579679,"31,519.76"
Ministry of Justice,HM Courts and Tribunals Service,21-Apr-11,CZ999-South East Region,610400-Debtors <1 year - Prepayments & Accrued Income,BASILDON DISTRICT COUNCIL,1579629,"33,341.00"
Ministry of Justice,HM Courts and Tribunals Service,21-Apr-11,DZ999-South West Region,610400-Debtors <1 year - Prepayments & Accrued Income,BOURNEMOUTH BOROUGH COUNCIL,1579647,"38,320.50"
Ministry of Justice,HM Courts and Tribunals Service,21-Apr-11,HZ999-North East and Yorkshire,610400-Debtors <1 year - Prepayments & Accrued Income,BRADFORD METROPOLITAN COUNCIL,1579649,"53,259.00"
Ministry of Justice,HM Courts and Tribunals Service,21-Apr-11,DZ999-South West Region,610400-Debtors <1 year - Prepayments & Accrued Income,BRISTOL CITY COUNCIL,1579654,"69,280.00"
Ministry of Justice,HM Courts and Tribunals Service,21-Apr-11,DZ999-South West Region,610400-Debtors <1 year - Prepayments & Accrued Income,BRISTOL CITY COUNCIL,1579654,"47,630.00"
Ministry of Justice,HM Courts and Tribunals Service,21-Apr-11,DZ999-South West Region,610400-Debtors <1 year - Prepayments & Accrued Income,BRISTOL CITY COUNCIL,1579654,"44,166.00"
Ministry of Justice,HM Courts and Tribunals Service,21-Apr-11,EZ999-Wales Region,610400-Debtors <1 year - Prepayments & Accrued Income,CARDIFF COUNTY COUNCIL,1579662,"34,882.00"
Ministry of Justice,HM Courts and Tribunals Service,21-Apr-11,DZ999-South West Region,610400-Debtors <1 year - Prepayments & Accrued Income,EXETER CITY COUNCIL,1579725,"43,083.50"
Ministry of Justice,HM Courts and Tribunals Service,21-Apr-11,GZ999-North West Region,610400-Debtors <1 year - Prepayments & Accrued Income,LIVERPOOL CITY COUNCIL,1579758,"125,570.00"
Ministry of Justice,HM Courts and Tribunals Service,21-Apr-11,GZ999-North West Region,610400-Debtors <1 year - Prepayments & Accrued Income,LIVERPOOL CITY COUNCIL,1579758,"69,713.00"
Ministry of Justice,HM Courts and Tribunals Service,21-Apr-11,TR200-Regional South,610400-Debtors <1 year - Prepayments & Accrued Income,LONDON BOROUGH OF ISLINGTON,1579774,"76,557.00"
Ministry of Justice,HM Courts and Tribunals Service,21-Apr-11,BZ999-London Region,610400-Debtors <1 year - Prepayments & Accrued Income,LONDON BOROUGH OF ISLINGTON,1579774,"49,377.00"
Ministry of Justice,HM Courts and Tribunals Service,21-Apr-11,BZ999-London Region,610400-Debtors <1 year - Prepayments & Accrued Income,LONDON BOROUGH OF SOUTHWARK,1579780,"43,941.00"
Ministry of Justice,HM Courts and Tribunals Service,21-Apr-11,BZ999-London Region,610400-Debtors <1 year - Prepayments & Accrued Income,LONDON BOROUGH OF SOUTHWARK,1579780,"104,190.00"
Ministry of Justice,HM Courts and Tribunals Service,21-Apr-11,BZ999-London Region,610400-Debtors <1 year - Prepayments & Accrued Income,LONDON BOROUGH OF SOUTHWARK,1579780,"84,258.00"
Ministry of Justice,HM Courts and Tribunals Service,21-Apr-11,BZ999-London Region,610400-Debtors <1 year - Prepayments & Accrued Income,LONDON BOROUGH OF SOUTHWARK,1579780,"31,483.50"
Ministry of Justice,HM Courts and Tribunals Service,21-Apr-11,CZ999-South East Region,610400-Debtors <1 year - Prepayments & Accrued Income,MAIDSTONE BOROUGH COUNCIL,1579785,"57,589.00"
Ministry of Justice,HM Courts and Tribunals Service,21-Apr-11,FZ999-Midlands Region,610400-Debtors <1 year - Prepayments & Accrued Income,DERBY CITY COUNCIL,1579701,"27,279.00"
Ministry of Justice,HM Courts and Tribunals Service,21-Apr-11,CZ999-South East Region,610400-Debtors <1 year - Prepayments & Accrued Income,CHELMSFORD BOROUGH COUNCIL,1579667,"30,093.50"
Ministry of Justice,HM Courts and Tribunals Service,21-Apr-11,CZ999-South East Region,610400-Debtors <1 year - Prepayments & Accrued Income,CHELMSFORD BOROUGH COUNCIL,1579667,"26,629.50"
Ministry of Justice,HM Courts and Tribunals Service,21-Apr-11,FZ999-Midlands Region,610400-Debtors <1 year - Prepayments & Accrued Income,CITY OF STOKE ON TRENT,1579678,"30,310.00"
Ministry of Justice,HM Courts and Tribunals Service,21-Apr-11,TR200-Regional South,610400-Debtors <1 year - Prepayments & Accrued Income,LONDON BOROUGH OF CAMDEN,1579764,"29,671.50"
Ministry of Justice,HM Courts and Tribunals Service,21-Apr-11,TR140-Finance & Resources (Estates),610400-Debtors <1 year - Prepayments & Accrued Income,LONDON BOROUGH OF CAMDEN,1579764,"55,719.00"
Ministry of Justice,HM Courts and Tribunals Service,21-Apr-11,IZ999-RCJ Group,610400-Debtors <1 year - Prepayments & Accrued Income,LONDON BOROUGH OF CAMDEN,1579764,"154,020.00"
Ministry of Justice,HM Courts and Tribunals Service,21-Apr-11,GZ999-North West Region,610400-Debtors <1 year - Prepayments & Accrued Income,CARLISLE CITY COUNCIL,1579663,"25,330.50"
Ministry of Justice,HM Courts and Tribunals Service,21-Apr-11,TR200-Regional South,610400-Debtors <1 year - Prepayments & Accrued Income,CITY OF LONDON,1579677,"61,238.00"
Ministry of Justice,HM Courts and Tribunals Service,21-Apr-11,IZ999-RCJ Group,610400-Debtors <1 year - Prepayments & Accrued Income,CITY OF LONDON,1579677,"34,046.50"
Ministry of Justice,HM Courts and Tribunals Service,21-Apr-11,DZ999-South West Region,610400-Debtors <1 year - Prepayments & Accrued Income,WINCHESTER CITY COUNCIL,1579903,"41,772.27"
Ministry of Justice,HM Courts and Tribunals Service,21-Apr-11,HZ999-North East and Yorkshire,610400-Debtors <1 year - Prepayments & Accrued Income,MIDDLESBROUGH COUNCIL,1579795,"61,053.00"
Ministry of Justice,HM Courts and Tribunals Service,21-Apr-11,HZ999-North East and Yorkshire,610400-Debtors <1 year - Prepayments & Accrued Income,MIDDLESBROUGH COUNCIL,1579795,"28,794.50"
Ministry of Justice,HM Courts and Tribunals Service,21-Apr-11,HZ999-North East and Yorkshire,610400-Debtors <1 year - Prepayments & Accrued Income,NEWCASTLE UPON TYNE CITY COUNCIL,1579803,"64,084.00"
Ministry of Justice,HM Courts and Tribunals Service,21-Apr-11,CZ999-South East Region,610400-Debtors <1 year - Prepayments & Accrued Income,NORWICH CITY COUNCIL,1579816,"28,578.00"
Ministry of Justice,HM Courts and Tribunals Service,21-Apr-11,DZ999-South West Region,610400-Debtors <1 year - Prepayments & Accrued Income,PORTSMOUTH CITY COUNCIL,1579823,"41,568.00"
Ministry of Justice,HM Courts and Tribunals Service,21-Apr-11,GZ999-North West Region,610400-Debtors <1 year - Prepayments & Accrued Income,PRESTON CITY COUNCIL,1579825,"51,094.00"
Ministry of Justice,HM Courts and Tribunals Service,21-Apr-11,DZ999-South West Region,610400-Debtors <1 year - Prepayments & Accrued Income,SOUTHAMPTON CITY COUNCIL,1579861,"30,959.50"
Ministry of Justice,HM Courts and Tribunals Service,21-Apr-11,DZ999-South West Region,610400-Debtors <1 year - Prepayments & Accrued Income,SOUTHAMPTON CITY COUNCIL,1579861,"37,671.00"
Ministry of Justice,HM Courts and Tribunals Service,21-Apr-11,CZ999-South East Region,610400-Debtors <1 year - Prepayments & Accrued Income,ST ALBANS CITY & DISTRICT COUNCIL,1579864,"32,475.00"
Ministry of Justice,HM Courts and Tribunals Service,21-Apr-11,FZ999-Midlands Region,610400-Debtors <1 year - Prepayments & Accrued Income,CITY OF LINCOLN COUNCIL,1579676,"28,361.50"
Ministry of Justice,HM Courts and Tribunals Service,21-Apr-11,FZ999-Midlands Region,610400-Debtors <1 year - Prepayments & Accrued Income,COVENTRY CITY COUNCIL,1579691,"26,500.08"
Ministry of Justice,HM Courts and Tribunals Service,21-Apr-11,HZ999-North East and Yorkshire,610400-Debtors <1 year - Prepayments & Accrued Income,SHEFFIELD CITY COUNCIL,1579846,"39,186.50"
Ministry of Justice,HM Courts and Tribunals Service,21-Apr-11,HZ999-North East and Yorkshire,610400-Debtors <1 year - Prepayments & Accrued Income,SHEFFIELD CITY COUNCIL,1579846,"79,239.00"
Ministry of Justice,HM Courts and Tribunals Service,05-Apr-11,WW000-Balance Sheet,611000-Debtors <1 year - Other Debtors,PRICEWATERHOUSE COOPERS LLP,1554286,"75,577.76"
Ministry of Justice,HM Courts and Tribunals Service,21-Apr-11,WW000-Balance Sheet,611000-Debtors <1 year - Other Debtors,PEMBROKESHIRE COUNTY COUNCIL,1579820,"28,765.88"
Ministry of Justice,HM Courts and Tribunals Service,19-Apr-11,WW000-Balance Sheet,710100-Creditors < 1 year - Other Taxation & Social Security,HMRC,1069,"3,563,836.90"
Ministry of Justice,HM Courts and Tribunals Service,19-Apr-11,WW000-Balance Sheet,710100-Creditors < 1 year - Other Taxation & Social Security,HMRC,1073,"2,015,954.61"
Ministry of Justice,HM Courts and Tribunals Service,19-Apr-11,WW000-Balance Sheet,710100-Creditors < 1 year - Other Taxation & Social Security,HMRC,1077,"234,276.56"
Ministry of Justice,HM Courts and Tribunals Service,19-Apr-11,WW000-Balance Sheet,710100-Creditors < 1 year - Other Taxation & Social Security,HMRC,1079,"190,228.42"
Ministry of Justice,HM Courts and Tribunals Service,19-Apr-11,WW000-Balance Sheet,710100-Creditors < 1 year - Other Taxation & Social Security,HMRC,1090,"1,401,557.80"
Ministry of Justice,HM Courts and Tribunals Service,19-Apr-11,WW000-Balance Sheet,710100-Creditors < 1 year - Other Taxation & Social Security,HMRC,1086,"465,266.07"
Ministry of Justice,HM Courts and Tribunals Service,19-Apr-11,WW000-Balance Sheet,710100-Creditors < 1 year - Other Taxation & Social Security,HMRC,1084,"715,428.92"
Ministry of Justice,HM Courts and Tribunals Service,19-Apr-11,WW000-Balance Sheet,710100-Creditors < 1 year - Other Taxation & Social Security,HMRC,1081,"2,945,319.41"
Ministry of Justice,HM Courts and Tribunals Service,19-Apr-11,WW000-Balance Sheet,710100-Creditors < 1 year - Other Taxation & Social Security,HMRC,1078,"43,337.12"
Ministry of Justice,HM Courts and Tribunals Service,19-Apr-11,WW000-Balance Sheet,710100-Creditors < 1 year - Other Taxation & Social Security,HMRC,1080,"38,931.47"
Ministry of Justice,HM Courts and Tribunals Service,19-Apr-11,WW000-Balance Sheet,710100-Creditors < 1 year - Other Taxation & Social Security,HMRC,1089,"760,379.84"
Ministry of Justice,HM Courts and Tribunals Service,19-Apr-11,WW000-Balance Sheet,710100-Creditors < 1 year - Other Taxation & Social Security,HMRC,1085,"256,862.06"
Ministry of Justice,HM Courts and Tribunals Service,19-Apr-11,WW000-Balance Sheet,710100-Creditors < 1 year - Other Taxation & Social Security,HMRC,1083,"470,502.23"
Ministry of Justice,HM Courts and Tribunals Service,19-Apr-11,WW000-Balance Sheet,710100-Creditors < 1 year - Other Taxation & Social Security,HMRC,1082,"2,745,043.04"
Ministry of Justice,HM Courts and Tribunals Service,19-Apr-11,WW000-Balance Sheet,710100-Creditors < 1 year - Other Taxation & Social Security,HMRC,1070,"2,612,707.96"
Ministry of Justice,HM Courts and Tribunals Service,19-Apr-11,WW000-Balance Sheet,710100-Creditors < 1 year - Other Taxation & Social Security,HMRC,1074,"1,273,219.38"
Ministry of Justice,HM Courts and Tribunals Service,05-Apr-11,IZ999-RCJ Group,710800-Creditor <1 yr - Third Party Monies,THE OFFICIAL RECEIVER,355098,"151,000.00"
Ministry of Justice,HM Courts and Tribunals Service,05-Apr-11,IZ999-RCJ Group,710800-Creditor <1 yr - Third Party Monies,THE OFFICIAL RECEIVER,355097,"120,450.00"
Ministry of Justice,HM Courts and Tribunals Service,07-Apr-11,FZ999-Midlands Region,710800-Creditor <1 yr - Third Party Monies,ONE TIME CAPS,358894,"28,899.74"
Ministry of Justice,HM Courts and Tribunals Service,07-Apr-11,FZ999-Midlands Region,710800-Creditor <1 yr - Third Party Monies,ONE TIME CAPS,357294,"32,508.17"
Ministry of Justice,HM Courts and Tribunals Service,07-Apr-11,FZ999-Midlands Region,710800-Creditor <1 yr - Third Party Monies,ONE TIME CAPS,359771,"29,957.24"
Ministry of Justice,HM Courts and Tribunals Service,07-Apr-11,FZ999-Midlands Region,710800-Creditor <1 yr - Third Party Monies,ONE TIME CAPS,357617,"40,964.36"
Ministry of Justice,HM Courts and Tribunals Service,14-Apr-11,FZ999-Midlands Region,710800-Creditor <1 yr - Third Party Monies,ONE TIME CAPS,362807,"35,876.94"
Ministry of Justice,HM Courts and Tribunals Service,14-Apr-11,FZ999-Midlands Region,710800-Creditor <1 yr - Third Party Monies,ONE TIME CAPS,364579,"25,155.22"
Ministry of Justice,HM Courts and Tribunals Service,21-Apr-11,FZ999-Midlands Region,710800-Creditor <1 yr - Third Party Monies,ONE TIME CAPS,368883,"36,954.29"
Ministry of Justice,HM Courts and Tribunals Service,21-Apr-11,FZ999-Midlands Region,710800-Creditor <1 yr - Third Party Monies,ONE TIME CAPS,369857,"25,834.72"
Ministry of Justice,HM Courts and Tribunals Service,28-Apr-11,FZ999-Midlands Region,710800-Creditor <1 yr - Third Party Monies,ONE TIME CAPS,372613,"29,519.42"
Ministry of Justice,HM Courts and Tribunals Service,08-Apr-11,IZ999-RCJ Group,311200-Criminal Legal Aid,KAIM TODNER LLP SOLICITORS#200901037-C5/B,360066,"43,168.14"
Ministry of Justice,HM Courts and Tribunals Service,08-Apr-11,IZ999-RCJ Group,311200-Criminal Legal Aid,MR GERALD MOHABIR#200901037-C5,360065,"55,200.00"
Ministry of Justice,HM Courts and Tribunals Service,08-Apr-11,AR999-HMCS Central Budgets,734000-Provisions - Utilised in year,CHESHIRE PENSION FUND#AE10410076,360051,"300,000.00"
Ministry of Justice,HM Courts and Tribunals Service,12-Apr-11,AR999-HMCS Central Budgets,734000-Provisions - Utilised in year,WILTSHIRE COUNTY COUNCIL#AE10410101,1564573,"965,000.00"
Ministry of Justice,HM Courts and Tribunals Service,12-Apr-11,AR999-HMCS Central Budgets,734000-Provisions - Utilised in year,STAFFORDSHIRE CITY COUNCIL#AE10410100,1564568,"1,004,000.00"
Ministry of Justice,HM Courts and Tribunals Service,12-Apr-11,AR999-HMCS Central Budgets,734000-Provisions - Utilised in year,HEAD OF FINANCE#AE10410099,1564567,"54,000.00"
Ministry of Justice,HM Courts and Tribunals Service,12-Apr-11,AR999-HMCS Central Budgets,734000-Provisions - Utilised in year,KENT COUNTY COUNCIL#AE10410098,1564566,"1,881,000.00"
Ministry of Justice,HM Courts and Tribunals Service,12-Apr-11,AR999-HMCS Central Budgets,734000-Provisions - Utilised in year,EAST RIDING OF YORKSHIRE COUNCIL#AE10410104,1564571,"524,000.00"
Ministry of Justice,HM Courts and Tribunals Service,12-Apr-11,AR999-HMCS Central Budgets,734000-Provisions - Utilised in year,HERFORDSHIRE COUNTY COUNCIL#AE10410105,1564572,"739,000.00"
Ministry of Justice,HM Courts and Tribunals Service,13-Apr-11,AR999-HMCS Central Budgets,734000-Provisions - Utilised in year,CAMBRIDGESHIRE PENSION FUND#AE10410080,1568499,"32,000.00"
Ministry of Justice,HM Courts and Tribunals Service,13-Apr-11,AR999-HMCS Central Budgets,734000-Provisions - Utilised in year,CUMBRIA COUNTY COUNCIL#AE10410085,1568504,"328,524.00"
Ministry of Justice,HM Courts and Tribunals Service,13-Apr-11,AR999-HMCS Central Budgets,734000-Provisions - Utilised in year,DERBYSHIRE COUNTY COUNCIL#AE10410086,1568505,"380,822.00"
Ministry of Justice,HM Courts and Tribunals Service,13-Apr-11,AR999-HMCS Central Budgets,734000-Provisions - Utilised in year,ESSEX COUNTY COUNCIL#AE10410087,1568506,"1,255,563.00"
Ministry of Justice,HM Courts and Tribunals Service,13-Apr-11,AR999-HMCS Central Budgets,734000-Provisions - Utilised in year,TORFAEN COUNTY BOROUGH#AE10410088,1568507,"396,822.00"
Ministry of Justice,HM Courts and Tribunals Service,13-Apr-11,AR999-HMCS Central Budgets,734000-Provisions - Utilised in year,MERSEYSIDE COUNTY COUNCIL#AE10410090,1568509,"922,129.00"
Ministry of Justice,HM Courts and Tribunals Service,13-Apr-11,AR999-HMCS Central Budgets,734000-Provisions - Utilised in year,YORKSHIRE COUNTY COUNCIL#AE10410091,1568510,"679,617.00"
Ministry of Justice,HM Courts and Tribunals Service,13-Apr-11,AR999-HMCS Central Budgets,734000-Provisions - Utilised in year,NORTHAMPTONSHIRE COUNTY COUNCIL#AE10410092,1568511,"404,522.00"
Ministry of Justice,HM Courts and Tribunals Service,13-Apr-11,AR999-HMCS Central Budgets,734000-Provisions - Utilised in year,NOTTINGHAMSHIRE COUNTY COUNCIL#AE10410093,1568512,"1,151,000.00"
Ministry of Justice,HM Courts and Tribunals Service,13-Apr-11,AR999-HMCS Central Budgets,734000-Provisions - Utilised in year,WARWICKSHIRE COUNTY COUNCIL#AE10410095,1568514,"676,908.00"
Ministry of Justice,HM Courts and Tribunals Service,13-Apr-11,AR999-HMCS Central Budgets,734000-Provisions - Utilised in year,WOLVERHAMPTON CITY COUNCIL#AE10410096,1568515,"3,261,152.00"
Ministry of Justice,HM Courts and Tribunals Service,13-Apr-11,AR999-HMCS Central Budgets,734000-Provisions - Utilised in year,WORCESTERSHIRE COUNTY COUNCIL#AE10410097,1568516,"715,174.00"
Ministry of Justice,HM Courts and Tribunals Service,13-Apr-11,AR999-HMCS Central Budgets,734000-Provisions - Utilised in year,LINCOLNSHIRE PENSION FUND#AE10410083,1568502,"26,300.00"
Ministry of Justice,HM Courts and Tribunals Service,20-Apr-11,AR999-HMCS Central Budgets,734000-Provisions - Utilised in year,CORPORATE RESOURCES DEPARTMENT#AE10410102,367213,"365,000.00"
Ministry of Justice,HM Courts and Tribunals Service,21-Apr-11,AR999-HMCS Central Budgets,734000-Provisions - Utilised in year,LANCASHIRE COUNTY COUNCIL#AE10410089,1580226,"326,531.00"
Ministry of Justice,Ministry of Justice Headquarters,07-Apr-11,PZ501-MoJ ICT Feeder,212001-Agency staff,METHODS CONSULTING,1046609,"27,876.00"
Ministry of Justice,Ministry of Justice Headquarters,18-Apr-11,PZ501-MoJ ICT Feeder,212001-Agency staff,ACTICA CONSULTING LTD,1047478,"28,350.00"
Ministry of Justice,Ministry of Justice Headquarters,07-Apr-11,PZ501-MoJ ICT Feeder,212001-Agency staff,ASE CONSULTING LTD,1046432,"27,018.00"
Ministry of Justice,Ministry of Justice Headquarters,14-Apr-11,PZ501-MoJ ICT Feeder,212001-Agency staff,ALPINE RESOURCING LTD,1047110,"25,430.09"
Ministry of Justice,Ministry of Justice Headquarters,14-Apr-11,PZ501-MoJ ICT Feeder,212001-Agency staff,ACTICA CONSULTING LTD,1047103,"26,460.00"
Ministry of Justice,Ministry of Justice Headquarters,21-Apr-11,NZ401-Finance Group Feeder,212001-Agency staff,TAC TPS LTD T/A ADVANTAGE TECHNICAL RESOURCING,1048045,"25,872.00"
Ministry of Justice,Ministry of Justice Headquarters,11-Apr-11,NZ406-Strategic Estates Feeder,222002-Other Property Costs,CBRE CB RICHARD ELLIS,1046790,"48,500.00"
Ministry of Justice,Ministry of Justice Headquarters,11-Apr-11,NZ406-Strategic Estates Feeder,261000-Fuel and Utilities,EDF ENERGY LTD,1046814,"58,196.82"
Ministry of Justice,Ministry of Justice Headquarters,18-Apr-11,NZ406-Strategic Estates Feeder,261000-Fuel and Utilities,EDF ENERGY LTD,1047556,"108,525.67"
Ministry of Justice,Ministry of Justice Headquarters,11-Apr-11,NZ406-Strategic Estates Feeder,222002-Other Property Costs,CARLISLE SECURITY SERVICES LTD,1046787,"125,434.68"
Ministry of Justice,Ministry of Justice Headquarters,07-Apr-11,NZ406-Strategic Estates Feeder,222002-Other Property Costs,LANCASTER OFFICE CLEANING CO LTD,1046585,"110,448.07"
Ministry of Justice,Ministry of Justice Headquarters,07-Apr-11,LZ510-Combined CFO/OSPT Operations,222002-Other Property Costs,HMRC,1046553,"25,152.80"
Ministry of Justice,Ministry of Justice Headquarters,28-Apr-11,NZ406-Strategic Estates Feeder,222002-Other Property Costs,JACOBS ENGINEERING UK LTD,1048324,"40,610.98"
Ministry of Justice,Ministry of Justice Headquarters,04-Apr-11,NZ406-Strategic Estates Feeder,222001-Maintenance,DTZ DEBENHAM TIE LEUNG,1046165,"44,127.34"
Ministry of Justice,Ministry of Justice Headquarters,28-Apr-11,NZ406-Strategic Estates Feeder,222001-Maintenance,DTZ DEBENHAM TIE LEUNG,1048301,"41,125.00"
Ministry of Justice,Ministry of Justice Headquarters,11-Apr-11,NZ406-Strategic Estates Feeder,222001-Maintenance,M J FERGUSON LTD,1046886,"201,065.70"
Ministry of Justice,Ministry of Justice Headquarters,18-Apr-11,NZ406-Strategic Estates Feeder,222001-Maintenance,ASSOCIATED SERVICES (ESSEX) LTD,1047487,"105,976.79"
Ministry of Justice,Ministry of Justice Headquarters,18-Apr-11,NX900-MOJ Shared Services,262000-SCA Costs,LIBERATA UK LTD,1047628,"323,598.70"
Ministry of Justice,Ministry of Justice Headquarters,21-Apr-11,NX900-MOJ Shared Services,262000-SCA Costs,LIBERATA UK LTD,1047958,"29,564.41"
Ministry of Justice,Ministry of Justice Headquarters,21-Apr-11,KY220-Access to Justice Change,262000-SCA Costs,LIBERATA UK LTD,1047958,"29,700.00"
Ministry of Justice,Ministry of Justice Headquarters,18-Apr-11,NX900-MOJ Shared Services,262000-SCA Costs,LIBERATA UK LTD,1047628,"1,504,179.43"
Ministry of Justice,Ministry of Justice Headquarters,04-Apr-11,LZ600-Transforming Justice,223000-Other Expenditure,THE FUTURES COMPANY,1046321,"28,020.00"
Ministry of Justice,Ministry of Justice Headquarters,04-Apr-11,OZ501-HRD Feeder,223000-Other Expenditure,CABINET OFFICE,1046136,"66,253.20"
Ministry of Justice,Ministry of Justice Headquarters,07-Apr-11,RE999-CJG - Research & Analysis,223000-Other Expenditure,TNS BMRB,1046702,"46,718.40"
Ministry of Justice,Ministry of Justice Headquarters,11-Apr-11,LZ600-Transforming Justice,223000-Other Expenditure,THE FUTURES COMPANY,1046973,"65,153.75"
Ministry of Justice,Ministry of Justice Headquarters,21-Apr-11,PZ501-MoJ ICT Feeder,223001-Printing Postage and Office expenditure,LIBERATA UK LTD,1047958,"51,625.58"
Ministry of Justice,Ministry of Justice Headquarters,21-Apr-11,PZ501-MoJ ICT Feeder,223001-Printing Postage and Office expenditure,LIBERATA UK LTD,1047958,"56,762.39"
Ministry of Justice,Ministry of Justice Headquarters,26-Apr-11,MD600-Information Directorate,223000-Other Expenditure,LEXIS NEXIS BUTTERWORTHS,1048127,"190,000.80"
Ministry of Justice,Ministry of Justice Headquarters,28-Apr-11,MD600-Information Directorate,223000-Other Expenditure,SWEET & MAXWELL LTD,1048379,"41,579.73"
Ministry of Justice,Ministry of Justice Headquarters,18-Apr-11,QY200-OU10 Billback,223000-Other Expenditure,HM PRISON SERVICE,1047595,"154,829.75"
Ministry of Justice,Ministry of Justice Headquarters,21-Apr-11,NX900-MOJ Shared Services,263000-Other Contracted Out Services,CAPITA HARTSHEAD LTD,1047859,"51,972.53"
Ministry of Justice,Ministry of Justice Headquarters,04-Apr-11,PZ501-MoJ ICT Feeder,265000-IT & Telecommunications,POLAR LAKE UK LTD,1046279,"77,580.00"
Ministry of Justice,Ministry of Justice Headquarters,04-Apr-11,PZ501-MoJ ICT Feeder,265000-IT & Telecommunications,STERIA LTD,1046311,"31,803.17"
Ministry of Justice,Ministry of Justice Headquarters,04-Apr-11,PZ501-MoJ ICT Feeder,265000-IT & Telecommunications,COMPUTERS IN PERSONNEL LTD,1046152,"56,368.92"
Ministry of Justice,Ministry of Justice Headquarters,04-Apr-11,PZ501-MoJ ICT Feeder,265000-IT & Telecommunications,CABLE & WIRELESS,1046137,"95,062.08"
Ministry of Justice,Ministry of Justice Headquarters,07-Apr-11,PZ501-MoJ ICT Feeder,265000-IT & Telecommunications,CACI LTD,1046459,"27,262.80"
Ministry of Justice,Ministry of Justice Headquarters,07-Apr-11,PZ501-MoJ ICT Feeder,265000-IT & Telecommunications,CACI LTD,1046459,"69,870.00"
Ministry of Justice,Ministry of Justice Headquarters,07-Apr-11,PZ501-MoJ ICT Feeder,265000-IT & Telecommunications,CACI LTD,1046459,"27,000.00"
Ministry of Justice,Ministry of Justice Headquarters,07-Apr-11,LZ600-Transforming Justice,265000-IT & Telecommunications,SPECIALIST COMPUTER CENTRES PLC (SCC),1046681,"192,000.00"
Ministry of Justice,Ministry of Justice Headquarters,07-Apr-11,PZ501-MoJ ICT Feeder,265000-IT & Telecommunications,CACI LTD,1046459,"28,200.00"
Ministry of Justice,Ministry of Justice Headquarters,07-Apr-11,PZ501-MoJ ICT Feeder,265000-IT & Telecommunications,CABLE & WIRELESS,1046458,"3,929,001.79"
Ministry of Justice,Ministry of Justice Headquarters,11-Apr-11,PZ501-MoJ ICT Feeder,265000-IT & Telecommunications,ORACLE CORPORATION UK LTD,1046929,"31,421.19"
Ministry of Justice,Ministry of Justice Headquarters,14-Apr-11,RE999-CJG - Research & Analysis,265000-IT & Telecommunications,EXPERIAN LTD,1047205,"36,000.00"
Ministry of Justice,Ministry of Justice Headquarters,18-Apr-11,PZ501-MoJ ICT Feeder,265000-IT & Telecommunications,INFORMATION INITIATIVES LTD,1047603,"29,265.60"
Ministry of Justice,Ministry of Justice Headquarters,21-Apr-11,RE999-CJG - Research & Analysis,265000-IT & Telecommunications,SAS SOFTWARE LTD,1048028,"115,560.00"
Ministry of Justice,Ministry of Justice Headquarters,26-Apr-11,PZ501-MoJ ICT Feeder,265000-IT & Telecommunications,FUJITSU SERVICES LTD,1048110,"60,000.00"
Ministry of Justice,Ministry of Justice Headquarters,07-Apr-11,PZ501-MoJ ICT Feeder,265000-IT & Telecommunications,FUJITSU SERVICES LTD,1046518,"121,605.96"
Ministry of Justice,Ministry of Justice Headquarters,07-Apr-11,PZ501-MoJ ICT Feeder,265000-IT & Telecommunications,FUJITSU SERVICES LTD,1046518,"50,526.31"
Ministry of Justice,Ministry of Justice Headquarters,07-Apr-11,PZ501-MoJ ICT Feeder,265000-IT & Telecommunications,FUJITSU SERVICES LTD,1046518,"70,099.45"
Ministry of Justice,Ministry of Justice Headquarters,07-Apr-11,PZ501-MoJ ICT Feeder,265000-IT & Telecommunications,FUJITSU SERVICES LTD,1046518,"437,098.16"
Ministry of Justice,Ministry of Justice Headquarters,07-Apr-11,PZ501-MoJ ICT Feeder,265000-IT & Telecommunications,FUJITSU SERVICES LTD,1046518,"134,184.10"
Ministry of Justice,Ministry of Justice Headquarters,07-Apr-11,PZ501-MoJ ICT Feeder,265000-IT & Telecommunications,FUJITSU SERVICES LTD,1046518,"65,922.31"
Ministry of Justice,Ministry of Justice Headquarters,11-Apr-11,PZ501-MoJ ICT Feeder,265000-IT & Telecommunications,FUJITSU SERVICES LTD,1046824,"182,161.20"
Ministry of Justice,Ministry of Justice Headquarters,14-Apr-11,PZ501-MoJ ICT Feeder,265000-IT & Telecommunications,FUJITSU SERVICES LTD,1047219,"66,000.00"
Ministry of Justice,Ministry of Justice Headquarters,14-Apr-11,MD600-Information Directorate,265000-IT & Telecommunications,LOGICA UK LTD,1047301,"71,344.80"
Ministry of Justice,Ministry of Justice Headquarters,14-Apr-11,MD600-Information Directorate,265000-IT & Telecommunications,LOGICA UK LTD,1047301,"45,684.00"
Ministry of Justice,Ministry of Justice Headquarters,14-Apr-11,PZ501-MoJ ICT Feeder,265000-IT & Telecommunications,FUJITSU SERVICES LTD,1047219,"202,505.23"
Ministry of Justice,Ministry of Justice Headquarters,14-Apr-11,QZ600-CPG Other,265000-IT & Telecommunications,HOME OFFICE,1047253,"45,364.00"
Ministry of Justice,Ministry of Justice Headquarters,07-Apr-11,MD600-Information Directorate,223000-Other Expenditure,HOME OFFICE,1046555,"55,182.36"
Ministry of Justice,Ministry of Justice Headquarters,14-Apr-11,MD600-Information Directorate,223000-Other Expenditure,TNT UK LTD,1047420,"420,006.84"
Ministry of Justice,Ministry of Justice Headquarters,14-Apr-11,MD600-Information Directorate,223000-Other Expenditure,TNT UK LTD,1047420,"99,555.50"
Ministry of Justice,Ministry of Justice Headquarters,11-Apr-11,PZ501-MoJ ICT Feeder,265000-IT & Telecommunications,LOGICA UK LTD,1046882,"53,578.13"
Ministry of Justice,Ministry of Justice Headquarters,11-Apr-11,PZ501-MoJ ICT Feeder,265000-IT & Telecommunications,LOGICA UK LTD,1046882,"95,692.80"
Ministry of Justice,Ministry of Justice Headquarters,11-Apr-11,KY220-Access to Justice Change,265000-IT & Telecommunications,LOGICA UK LTD,1046882,"326,221.20"
Ministry of Justice,Ministry of Justice Headquarters,11-Apr-11,KY220-Access to Justice Change,265000-IT & Telecommunications,LOGICA UK LTD,1046882,"188,534.40"
Ministry of Justice,Ministry of Justice Headquarters,11-Apr-11,PZ501-MoJ ICT Feeder,265000-IT & Telecommunications,LOGICA UK LTD,1046882,"75,006.00"
Ministry of Justice,Ministry of Justice Headquarters,11-Apr-11,KY220-Access to Justice Change,265000-IT & Telecommunications,LOGICA UK LTD,1046882,"65,692.80"
Ministry of Justice,Ministry of Justice Headquarters,11-Apr-11,LZ430-I&B Operations,265000-IT & Telecommunications,LOGICA UK LTD,1046882,"63,973.64"
Ministry of Justice,Ministry of Justice Headquarters,11-Apr-11,LZ430-I&B Operations,265000-IT & Telecommunications,LOGICA UK LTD,1046882,"71,969.20"
Ministry of Justice,Ministry of Justice Headquarters,11-Apr-11,PZ501-MoJ ICT Feeder,265000-IT & Telecommunications,LOGICA UK LTD,1046882,"235,692.00"
Ministry of Justice,Ministry of Justice Headquarters,11-Apr-11,PZ501-MoJ ICT Feeder,265000-IT & Telecommunications,LOGICA UK LTD,1046882,"37,266.61"
Ministry of Justice,Ministry of Justice Headquarters,11-Apr-11,PZ501-MoJ ICT Feeder,265000-IT & Telecommunications,LOGICA UK LTD,1046882,"64,521.24"
Ministry of Justice,Ministry of Justice Headquarters,11-Apr-11,PZ501-MoJ ICT Feeder,265000-IT & Telecommunications,LOGICA UK LTD,1046882,"41,767.20"
Ministry of Justice,Ministry of Justice Headquarters,11-Apr-11,PZ501-MoJ ICT Feeder,265000-IT & Telecommunications,LOGICA UK LTD,1046882,"42,773.10"
Ministry of Justice,Ministry of Justice Headquarters,11-Apr-11,PZ501-MoJ ICT Feeder,265000-IT & Telecommunications,LOGICA UK LTD,1046882,"482,613.60"
Ministry of Justice,Ministry of Justice Headquarters,11-Apr-11,PZ501-MoJ ICT Feeder,265000-IT & Telecommunications,LOGICA UK LTD,1046882,"176,286.00"
Ministry of Justice,Ministry of Justice Headquarters,11-Apr-11,PZ501-MoJ ICT Feeder,265000-IT & Telecommunications,LOGICA UK LTD,1046882,"35,470.80"
Ministry of Justice,Ministry of Justice Headquarters,11-Apr-11,PZ501-MoJ ICT Feeder,265000-IT & Telecommunications,LOGICA UK LTD,1046882,"28,578.00"
Ministry of Justice,Ministry of Justice Headquarters,11-Apr-11,PZ501-MoJ ICT Feeder,265000-IT & Telecommunications,LOGICA UK LTD,1046881,"27,637.80"
Ministry of Justice,Ministry of Justice Headquarters,11-Apr-11,PZ501-MoJ ICT Feeder,265000-IT & Telecommunications,LOGICA UK LTD,1046882,"53,578.13"
Ministry of Justice,Ministry of Justice Headquarters,11-Apr-11,PZ501-MoJ ICT Feeder,265000-IT & Telecommunications,LOGICA UK LTD,1046882,"540,000.00"
Ministry of Justice,Ministry of Justice Headquarters,11-Apr-11,PZ501-MoJ ICT Feeder,265000-IT & Telecommunications,LOGICA UK LTD,1046882,"69,215.46"
Ministry of Justice,Ministry of Justice Headquarters,11-Apr-11,PZ501-MoJ ICT Feeder,265000-IT & Telecommunications,LOGICA UK LTD,1046882,"193,976.99"
Ministry of Justice,Ministry of Justice Headquarters,11-Apr-11,PZ501-MoJ ICT Feeder,265000-IT & Telecommunications,LOGICA UK LTD,1046882,"68,098.80"
Ministry of Justice,Ministry of Justice Headquarters,11-Apr-11,PZ501-MoJ ICT Feeder,265000-IT & Telecommunications,LOGICA UK LTD,1046882,"30,600.00"
Ministry of Justice,Ministry of Justice Headquarters,11-Apr-11,PZ501-MoJ ICT Feeder,265000-IT & Telecommunications,LOGICA UK LTD,1046882,"61,220.40"
Ministry of Justice,Ministry of Justice Headquarters,11-Apr-11,MD600-Information Directorate,265000-IT & Telecommunications,LOGICA UK LTD,1046882,"27,928.80"
Ministry of Justice,Ministry of Justice Headquarters,11-Apr-11,PZ501-MoJ ICT Feeder,265000-IT & Telecommunications,LOGICA UK LTD,1046882,"95,692.80"
Ministry of Justice,Ministry of Justice Headquarters,18-Apr-11,KY220-Access to Justice Change,265000-IT & Telecommunications,ATOS ORIGIN IT SERVICES UK LTD,1047489,"50,004.00"
Ministry of Justice,Ministry of Justice Headquarters,21-Apr-11,KY220-Access to Justice Change,265000-IT & Telecommunications,LOGICA UK LTD,1047962,"53,450.40"
Ministry of Justice,Ministry of Justice Headquarters,26-Apr-11,PZ501-MoJ ICT Feeder,265000-IT & Telecommunications,LOGICA UK LTD,1048129,"29,389.80"
Ministry of Justice,Ministry of Justice Headquarters,04-Apr-11,PZ501-MoJ ICT Feeder,265000-IT & Telecommunications,ATOS ORIGIN IT SERVICES UK LTD,1046121,"46,500.00"
Ministry of Justice,Ministry of Justice Headquarters,04-Apr-11,PZ501-MoJ ICT Feeder,265000-IT & Telecommunications,ATOS ORIGIN IT SERVICES UK LTD,1046121,"131,062.80"
Ministry of Justice,Ministry of Justice Headquarters,04-Apr-11,PZ501-MoJ ICT Feeder,265000-IT & Telecommunications,ATOS ORIGIN IT SERVICES UK LTD,1046121,"57,053.04"
Ministry of Justice,Ministry of Justice Headquarters,04-Apr-11,PZ501-MoJ ICT Feeder,265000-IT & Telecommunications,ATOS ORIGIN IT SERVICES UK LTD,1046121,"44,352.00"
Ministry of Justice,Ministry of Justice Headquarters,04-Apr-11,PZ501-MoJ ICT Feeder,265000-IT & Telecommunications,ATOS ORIGIN IT SERVICES UK LTD,1046121,"84,712.80"
Ministry of Justice,Ministry of Justice Headquarters,11-Apr-11,PZ501-MoJ ICT Feeder,265000-IT & Telecommunications,LOGICA UK LTD,1046882,"113,769.60"
Ministry of Justice,Ministry of Justice Headquarters,11-Apr-11,PZ501-MoJ ICT Feeder,265000-IT & Telecommunications,LOGICA UK LTD,1046882,"96,412.80"
Ministry of Justice,Ministry of Justice Headquarters,11-Apr-11,PZ501-MoJ ICT Feeder,265000-IT & Telecommunications,ATOS ORIGIN IT SERVICES UK LTD,1046750,"59,907.60"
Ministry of Justice,Ministry of Justice Headquarters,11-Apr-11,LZ430-I&B Operations,265000-IT & Telecommunications,LOGICA UK LTD,1046882,"77,227.48"
Ministry of Justice,Ministry of Justice Headquarters,18-Apr-11,PZ501-MoJ ICT Feeder,265000-IT & Telecommunications,ATOS ORIGIN IT SERVICES UK LTD,1047489,"39,166.28"
Ministry of Justice,Ministry of Justice Headquarters,18-Apr-11,PZ501-MoJ ICT Feeder,265000-IT & Telecommunications,ATOS ORIGIN IT SERVICES UK LTD,1047489,"96,103.68"
Ministry of Justice,Ministry of Justice Headquarters,18-Apr-11,PZ501-MoJ ICT Feeder,265000-IT & Telecommunications,ATOS ORIGIN IT SERVICES UK LTD,1047489,"211,958.53"
Ministry of Justice,Ministry of Justice Headquarters,18-Apr-11,PZ501-MoJ ICT Feeder,265000-IT & Telecommunications,ATOS ORIGIN IT SERVICES UK LTD,1047489,"39,166.28"
Ministry of Justice,Ministry of Justice Headquarters,18-Apr-11,PZ501-MoJ ICT Feeder,265000-IT & Telecommunications,ATOS ORIGIN IT SERVICES UK LTD,1047489,"26,666.40"
Ministry of Justice,Ministry of Justice Headquarters,21-Apr-11,NX900-MOJ Shared Services,265000-IT & Telecommunications,ATOS ORIGIN IT SERVICES UK LTD,1047837,"58,024.80"
Ministry of Justice,Ministry of Justice Headquarters,28-Apr-11,PZ501-MoJ ICT Feeder,265000-IT & Telecommunications,ATOS ORIGIN IT SERVICES UK LTD,1048270,"30,242.53"
Ministry of Justice,Ministry of Justice Headquarters,28-Apr-11,PZ501-MoJ ICT Feeder,265000-IT & Telecommunications,ATOS ORIGIN IT SERVICES UK LTD,1048270,"36,138.00"
Ministry of Justice,Ministry of Justice Headquarters,28-Apr-11,PZ501-MoJ ICT Feeder,265000-IT & Telecommunications,ATOS ORIGIN IT SERVICES UK LTD,1048270,"31,392.24"
Ministry of Justice,Ministry of Justice Headquarters,28-Apr-11,PZ501-MoJ ICT Feeder,265000-IT & Telecommunications,ATOS ORIGIN IT SERVICES UK LTD,1048270,"358,023.91"
Ministry of Justice,Ministry of Justice Headquarters,28-Apr-11,PZ501-MoJ ICT Feeder,265000-IT & Telecommunications,ATOS ORIGIN IT SERVICES UK LTD,1048270,"44,352.00"
Ministry of Justice,Ministry of Justice Headquarters,28-Apr-11,PZ501-MoJ ICT Feeder,265000-IT & Telecommunications,ATOS ORIGIN IT SERVICES UK LTD,1048270,"57,053.04"
Ministry of Justice,Ministry of Justice Headquarters,28-Apr-11,PZ501-MoJ ICT Feeder,265000-IT & Telecommunications,ATOS ORIGIN IT SERVICES UK LTD,1048270,"336,160.80"
Ministry of Justice,Ministry of Justice Headquarters,28-Apr-11,PZ501-MoJ ICT Feeder,265000-IT & Telecommunications,ATOS ORIGIN IT SERVICES UK LTD,1048270,"35,072.40"
Ministry of Justice,Ministry of Justice Headquarters,28-Apr-11,PZ501-MoJ ICT Feeder,265000-IT & Telecommunications,ATOS ORIGIN IT SERVICES UK LTD,1048270,"56,404.30"
Ministry of Justice,Ministry of Justice Headquarters,28-Apr-11,PZ501-MoJ ICT Feeder,265000-IT & Telecommunications,ATOS ORIGIN IT SERVICES UK LTD,1048270,"25,981.20"
Ministry of Justice,Ministry of Justice Headquarters,28-Apr-11,PZ501-MoJ ICT Feeder,265000-IT & Telecommunications,ATOS ORIGIN IT SERVICES UK LTD,1048270,"154,984.50"
Ministry of Justice,Ministry of Justice Headquarters,11-Apr-11,PZ501-MoJ ICT Feeder,265000-IT & Telecommunications,ATOS ORIGIN IT SERVICES UK LTD,1046750,"48,330.00"
Ministry of Justice,Ministry of Justice Headquarters,26-Apr-11,KY500-Access to Justice Procurement,263000-Other Contracted Out Services,STAFFORDSHIRE COUNTY COUNCIL,1048161,"149,560.80"
Ministry of Justice,Ministry of Justice Headquarters,07-Apr-11,RB999-JPG - CJRD,265000-IT & Telecommunications,LOGICA UK LTD,1046595,"78,735.60"
Ministry of Justice,Ministry of Justice Headquarters,07-Apr-11,RB999-JPG - CJRD,265000-IT & Telecommunications,LOGICA UK LTD,1046595,"26,488.80"
Ministry of Justice,Ministry of Justice Headquarters,07-Apr-11,LZ600-Transforming Justice,264000-Consultancy,PA CONSULTING SERVICES LTD,1046635,"73,920.00"
Ministry of Justice,Ministry of Justice Headquarters,14-Apr-11,NZ401-Finance Group Feeder,264000-Consultancy,KPMG,1047279,"75,378.00"
Ministry of Justice,Ministry of Justice Headquarters,21-Apr-11,PZ501-MoJ ICT Feeder,264000-Consultancy,ELAN COMPUTING LTD,1047899,"240,510.00"
Ministry of Justice,Ministry of Justice Headquarters,28-Apr-11,KY340-Access to Justice Delivery,264000-Consultancy,BIRCHAM DYSON BELL LLP,1048279,"37,298.34"
Ministry of Justice,Ministry of Justice Headquarters,04-Apr-11,PZ501-MoJ ICT Feeder,224000-Staff travel and other,HM PRISON SERVICE,1046200,"35,013.75"
Ministry of Justice,Ministry of Justice Headquarters,18-Apr-11,KY340-Access to Justice Delivery,224000-Staff travel and other,APPOINTMENTS COMMISSION,1047483,"33,063.60"
Ministry of Justice,Ministry of Justice Headquarters,04-Apr-11,MD600-Information Directorate,266000-Judicial Costs,HAMMICKS LEGAL BOOKSHOPS,1046191,"155,602.08"
Ministry of Justice,Ministry of Justice Headquarters,11-Apr-11,MD600-Information Directorate,266000-Judicial Costs,HAMMICKS LEGAL BOOKSHOPS,1046833,"30,150.00"
Ministry of Justice,Ministry of Justice Headquarters,21-Apr-11,MD600-Information Directorate,266000-Judicial Costs,HAMMICKS LEGAL BOOKSHOPS,1047916,"36,099.50"
Ministry of Justice,Ministry of Justice Headquarters,21-Apr-11,MD600-Information Directorate,266000-Judicial Costs,HAMMICKS LEGAL BOOKSHOPS,1047916,"32,747.44"
Ministry of Justice,Ministry of Justice Headquarters,21-Apr-11,MD600-Information Directorate,266000-Judicial Costs,HAMMICKS LEGAL BOOKSHOPS,1047916,"36,532.32"
Ministry of Justice,Ministry of Justice Headquarters,07-Apr-11,KY500-Access to Justice Procurement,266000-Judicial Costs,CALDER CONFERENCES LTD,1046460,"45,847.20"
Ministry of Justice,Ministry of Justice Headquarters,21-Apr-11,MF600-Directorate of Judicial Offices,266000-Judicial Costs,CALDER CONFERENCES LTD,1047858,"35,450.59"
Ministry of Justice,Ministry of Justice Headquarters,21-Apr-11,MF600-Directorate of Judicial Offices,266000-Judicial Costs,CALDER CONFERENCES LTD,1047858,"39,015.81"
Ministry of Justice,Ministry of Justice Headquarters,04-Apr-11,MB600-LR & I Group Support,246000-Current Grants,DEPARTMENT FOR COMMUNITIES & LOCAL GOVERNMENT,1046161,"4,480,000.00"
Ministry of Justice,Ministry of Justice Headquarters,21-Apr-11,RG999-CFLAP Accumulator,246000-Current Grants,REUNITE INTERNATIONAL,1048018,"28,125.00"
Ministry of Justice,Ministry of Justice Headquarters,26-Apr-11,MG600-International Directorate,246000-Current Grants,THE JOHN SMITH MEMORIAL TRUST,6313,"225,000.00"
Ministry of Justice,Ministry of Justice Headquarters,07-Apr-11,KY340-Access to Justice Delivery,245000-Grants in Aid to NDPBs,THE PAROLE BOARD,6306,"550,000.00"
Ministry of Justice,Ministry of Justice Headquarters,15-Apr-11,KY340-Access to Justice Delivery,245000-Grants in Aid to NDPBs,CRIMINAL CASES REVIEW COMMISSION,6309,"500,000.00"
Ministry of Justice,Ministry of Justice Headquarters,18-Apr-11,RB999-JPG - CJRD,245000-Grants in Aid to NDPBs,VICTIM SUPPORT,1047727,"9,500,000.00"
Ministry of Justice,Ministry of Justice Headquarters,07-Apr-11,RC999-Criminal Justice Group - OMS,245000-Grants in Aid to NDPBs,YOUTH JUSTICE BOARD FOR ENGLAND & WALES,6307,"20,000,000.00"
Ministry of Justice,Ministry of Justice Headquarters,07-Apr-11,KY300-Legal Services Strategy,311100-Legal Aid,LEGAL SERVICES COMMISSION,6305,"75,000,000.00"
Ministry of Justice,Ministry of Justice Headquarters,14-Apr-11,KY300-Legal Services Strategy,311100-Legal Aid,LEGAL SERVICES COMMISSION,6308,"24,800,000.00"
Ministry of Justice,Ministry of Justice Headquarters,21-Apr-11,KY300-Legal Services Strategy,311100-Legal Aid,LEGAL SERVICES COMMISSION,6311,"10,000,000.00"
Ministry of Justice,Ministry of Justice Headquarters,28-Apr-11,KY300-Legal Services Strategy,311100-Legal Aid,LEGAL SERVICES COMMISSION,6314,"24,300,000.00"
Ministry of Justice,Ministry of Justice Headquarters,11-Apr-11,PZ501-MoJ ICT Feeder,532000-Tangible GBV - Additions,ATOS ORIGIN IT SERVICES UK LTD,1046750,"42,757.20"
Ministry of Justice,Ministry of Justice Headquarters,18-Apr-11,NZ406-Strategic Estates Feeder,532000-Tangible GBV - Additions,HEWLETT PACKARD LTD,1047592,"28,616.74"
Ministry of Justice,Ministry of Justice Headquarters,04-Apr-11,PZ501-MoJ ICT Feeder,532000-Tangible GBV - Additions,ALLIANTIST LTD,1046108,"96,000.00"
Ministry of Justice,Ministry of Justice Headquarters,04-Apr-11,PZ501-MoJ ICT Feeder,532000-Tangible GBV - Additions,STERIA LTD,1046311,"79,837.32"
Ministry of Justice,Ministry of Justice Headquarters,04-Apr-11,PZ501-MoJ ICT Feeder,532000-Tangible GBV - Additions,STERIA LTD,1046311,"75,963.82"
Ministry of Justice,Ministry of Justice Headquarters,04-Apr-11,PZ501-MoJ ICT Feeder,532000-Tangible GBV - Additions,FUJITSU SERVICES LTD,1046179,"114,966.21"
Ministry of Justice,Ministry of Justice Headquarters,04-Apr-11,PZ501-MoJ ICT Feeder,532000-Tangible GBV - Additions,FUJITSU SERVICES LTD,1046179,"47,538.60"
Ministry of Justice,Ministry of Justice Headquarters,04-Apr-11,PZ501-MoJ ICT Feeder,532000-Tangible GBV - Additions,FUJITSU SERVICES LTD,1046179,"302,216.65"
Ministry of Justice,Ministry of Justice Headquarters,07-Apr-11,PZ501-MoJ ICT Feeder,532000-Tangible GBV - Additions,FUJITSU SERVICES LTD,1046518,"136,509.73"
Ministry of Justice,Ministry of Justice Headquarters,07-Apr-11,PZ501-MoJ ICT Feeder,532000-Tangible GBV - Additions,FUJITSU SERVICES LTD,1046518,"136,826.66"
Ministry of Justice,Ministry of Justice Headquarters,21-Apr-11,PZ501-MoJ ICT Feeder,532000-Tangible GBV - Additions,FUJITSU SERVICES LTD,1047909,"114,966.21"
Ministry of Justice,Ministry of Justice Headquarters,21-Apr-11,PZ501-MoJ ICT Feeder,532000-Tangible GBV - Additions,FUJITSU SERVICES LTD,1047909,"262,597.32"
Ministry of Justice,Ministry of Justice Headquarters,04-Apr-11,WW000-Balance Sheet,610400-Debtors <1 year - Prepayments & Accrued Income,CITY OF WESTMINSTER,1046360,"112,577.78"
Ministry of Justice,Ministry of Justice Headquarters,04-Apr-11,WW000-Balance Sheet,610400-Debtors <1 year - Prepayments & Accrued Income,LONDON BOROUGH OF CAMDEN,1046363,"63,952.98"
Ministry of Justice,Ministry of Justice Headquarters,04-Apr-11,WW000-Balance Sheet,610400-Debtors <1 year - Prepayments & Accrued Income,LONDON BOROUGH OF ISLINGTON,1046364,"32,875.34"
Ministry of Justice,Ministry of Justice Headquarters,21-Apr-11,WW000-Balance Sheet,610400-Debtors <1 year - Prepayments & Accrued Income,CITY OF WESTMINSTER,1047817,"112,465.32"
Ministry of Justice,Ministry of Justice Headquarters,21-Apr-11,WW000-Balance Sheet,610400-Debtors <1 year - Prepayments & Accrued Income,CITY OF WESTMINSTER,1047872,"68,323.47"
Ministry of Justice,Ministry of Justice Headquarters,21-Apr-11,WW000-Balance Sheet,610400-Debtors <1 year - Prepayments & Accrued Income,CITY OF WESTMINSTER,1047872,"68,255.21"
Ministry of Justice,Ministry of Justice Headquarters,21-Apr-11,WW000-Balance Sheet,610400-Debtors <1 year - Prepayments & Accrued Income,LONDON BOROUGH OF CAMDEN,1047820,"63,889.09"
Ministry of Justice,Ministry of Justice Headquarters,21-Apr-11,WW000-Balance Sheet,610400-Debtors <1 year - Prepayments & Accrued Income,LONDON BOROUGH OF ISLINGTON,1047821,"32,842.50"
Ministry of Justice,Ministry of Justice Headquarters,19-Apr-11,WW000-Balance Sheet,710100-Creditors < 1 year - Other Taxation & Social Security,HMRC,1084,"1,951,721.38"
Ministry of Justice,Ministry of Justice Headquarters,19-Apr-11,WW000-Balance Sheet,710100-Creditors < 1 year - Other Taxation & Social Security,HMRC,1095,"98,760.00"
Ministry of Justice,Ministry of Justice Headquarters,19-Apr-11,WW000-Balance Sheet,710100-Creditors < 1 year - Other Taxation & Social Security,HMRC,1094,"66,837.42"
Ministry of Justice,Ministry of Justice Headquarters,19-Apr-11,WW000-Balance Sheet,710100-Creditors < 1 year - Other Taxation & Social Security,HMRC,1085,"1,513,522.81"
Ministry of Justice,Ministry of Justice Headquarters,19-Apr-11,WW000-Balance Sheet,811000-Interdepartmental - MoJHQ,HMRC,1089,"119,230.06"
Ministry of Justice,Ministry of Justice Headquarters,19-Apr-11,WW000-Balance Sheet,811000-Interdepartmental - MoJHQ,HMRC,1088,"132,173.40"
Ministry of Justice,Ministry of Justice Headquarters,19-Apr-11,MD600-Information Directorate,245000-Grants in Aid to NDPBs,THE INFORMATION COMMISSIONER#MD10509113,6310,"1,125,000.00"
Ministry of Justice,Ministry of Justice Headquarters,26-Apr-11,RC999-Criminal Justice Group - OMS,246000-Current Grants,YOUNG PEOPLE'S LEARNING AGENCY#RC37600005,1048138,"37,290.00"
